Workbook

Sheet ADD_B_FR2013
E1: 2014 | M1: 2015 | T1: Increase (Decrease) 2014 to 2015 | Z1: 35.8228 | AA1: (2014 CF) | AB1: 2012 Codes for Reference
A2: CPT1/ HCPCS | B2: Mod | C2: DESCRIPTION | D2: Status | E2: Physi- cian Work RVUs2 | F2: Non- Facility PE RVUs2 | G2: Facility PE RVUs2 | H2: Mal- Practice RVUs2 | I2: Non- Facility Total RVUs2 | J2: Facility Total RVUs2 | K2: HCPCS | L2: DESCRIPTION | M2: Status | N2: Physi- cian Work RVUs2 | O2: Non- Facility PE RVUs2 | P2: Facility PE RVUs2 | Q2: Mal- Practice RVUs2 | R2: Non- Facility Total RVUs2 | S2: Facility Total RVUs2 | T2: Physi- cian Work RVUs2 | U2: Non- Facility PE RVUs2 | V2: Facility PE RVUs2 | W2: Mal- Practice RVUs2 | X2: Non- Facility Total RVUs2 | Y2: Facility Total RVUs2 | Z2: Change in Non-Facility Payment using 2014 CF | AA2: Change in Facility Payment using 2014 CF | AB2: HCPCS | AC2: Non- Facility Total RVUs2 | AD2: Facility Total RVUs2
A3: 90785 | C3: Psytx complex interactive | D3: A | E3: 0.33 | F3: 0.06 | G3: 0.06 | H3: 0.01 | I3: 0.4 | J3: 0.4 | K3: 90785 | L3: Psytx complex interactive | M3: A | N3: 0.33 | O3: 0.06 | P3: 0.06 | Q3: 0.07 | R3: 0.46 | S3: 0.46 | T3: =N3-E3 -> 0 | U3: =O3-F3 -> 0 | V3: 0 | W3: 0.06 | X3: 0.06 | Y3: 0.06 | Z3: =X3*$Z$1 -> 2.149368 | AA3: =Y3*$Z$1 -> 2.149368 | AB3: 90802-90801 | AC3: 0.4 | AD3: 0.27
A4: 90791 | C4: Psych diagnostic evaluation | D4: A | E4: 3 | F4: 0.63 | G4: 0.51 | H4: 0.11 | I4: 3.74 | J4: 3.62 | K4: 90791 | L4: Psych diagnostic evaluation | M4: A | N4: 3 | O4: 0.57 | P4: 0.46 | Q4: 0.08 | R4: 3.65 | S4: 3.54 | T4: =N4-E4 -> 0 | U4: =O4-F4 -> -0.06 | V4: =P4-G4 -> -0.05 | W4: =Q4-H4 -> -0.03 | X4: =R4-I4 -> -0.09 | Y4: =S4-J4 -> -0.08 | Z4: =X4*$Z$1 -> -3.224052 | AA4: =Y4*$Z$1 -> -2.865824 | AB4: 90801 | AC4: 4.48 | AD4: 3.52
A5: 90792 | C5: Psych diag eval w/med srvcs | D5: A | E5: 3.25 | F5: 0.67 | G5: 0.55 | H5: 0.11 | I5: 4.03 | J5: 3.91 | K5: 90792 | L5: Psych diag eval w/med srvcs | M5: A | N5: 3.25 | O5: 0.72 | P5: 0.61 | Q5: 0.08 | R5: 4.05 | S5: 3.94 | T5: 0 | U5: 0.05 | V5: 0.06 | W5: -0.03 | X5: 0.02 | Y5: 0.03 | Z5: 0.716456 | AA5: 1.074684 | AB5: 90801 | AC5: 4.48 | AD5: 3.52
A6: 90832 | C6: Psytx pt&/family 30 minutes | D6: A | E6: 1.5 | F6: 0.25 | G6: 0.23 | H6: 0.06 | I6: 1.81 | J6: 1.79 | K6: 90832 | L6: Psytx pt&/family 30 minutes | M6: A | N6: 1.5 | O6: 0.24 | P6: 0.22 | Q6: 0.08 | R6: 1.82 | S6: 1.8 | T6: 0 | U6: -0.01 | V6: -0.01 | W6: 0.02 | X6: 0.01 | Y6: 0.01 | Z6: 0.358228 | AA6: 0.358228 | AB6: 90804 | AC6: 1.81 | AD6: 1.44
A7: 90833 | C7: Psytx pt&/fam w/e&m 30 min | D7: A | E7: 1.5 | F7: 0.29 | G7: 0.28 | H7: 0.06 | I7: 1.85 | J7: 1.84 | K7: 90833 | L7: Psytx pt&/fam w/e&m 30 min | M7: A | N7: 1.5 | O7: 0.29 | P7: 0.27 | Q7: 0.08 | R7: 1.87 | S7: 1.85 | T7: 0 | U7: 0 | V7: -0.01 | W7: 0.02 | X7: 0.02 | Y7: 0.01 | Z7: 0.716456 | AA7: 0.358228 | AB7: 90805 | AC7: 2.11 | AD7: 1.69
A8: 90834 | C8: Psytx pt&/family 45 minutes | D8: A | E8: 2 | F8: 0.32 | G8: 0.31 | H8: 0.08 | I8: 2.4 | J8: 2.39 | K8: 90834 | L8: Psytx pt&/family 45 minutes | M8: A | N8: 2 | O8: 0.31 | P8: 0.29 | Q8: 0.08 | R8: 2.39 | S8: 2.37 | T8: 0 | U8: -0.01 | V8: -0.02 | W8: 0 | X8: -0.01 | Y8: -0.02 | Z8: -0.358228 | AA8: -0.716456 | AB8: 90806 | AC8: 2.41 | AD8: 2.2
A9: 90836 | C9: Psytx pt&/fam w/e&m 45 min | D9: A | E9: 1.9 | F9: 0.37 | G9: 0.35 | H9: 0.07 | I9: 2.34 | J9: 2.32 | K9: 90836 | L9: Psytx pt&/fam w/e&m 45 min | M9: A | N9: 1.9 | O9: 0.36 | P9: 0.35 | Q9: 0.08 | R9: 2.34 | S9: 2.33 | T9: 0 | U9: -0.01 | V9: 0 | W9: 0.01 | X9: 0 | Y9: 0.01 | Z9: 0 | AA9: 0.358228 | AB9: 90807 | AC9: 2.92 | AD9: 2.5
A10: 90837 | C10: Psytx pt&/family 60 minutes | D10: A | E10: 3 | F10: 0.48 | G10: 0.46 | H10: 0.11 | I10: 3.59 | J10: 3.57 | K10: 90837 | L10: Psytx pt&/family 60 minutes | M10: A | N10: 3 | O10: 0.46 | P10: 0.44 | Q10: 0.08 | R10: 3.54 | S10: 3.52 | T10: 0 | U10: -0.02 | V10: -0.02 | W10: -0.03 | X10: -0.05 | Y10: -0.05 | Z10: -1.79114 | AA10: -1.79114 | AB10: 90808 | AC10: 3.52 | AD10: 3.31
A11: 90838 | C11: Psytx pt&/fam w/e&m 60 min | D11: A | E11: 2.5 | F11: 0.49 | G11: 0.47 | H11: 0.1 | I11: 3.09 | J11: 3.07 | K11: 90838 | L11: Psytx pt&/fam w/e&m 60 min | M11: A | N11: 2.5 | O11: 0.48 | P11: 0.46 | Q11: 0.08 | R11: 3.06 | S11: 3.04 | T11: 0 | U11: -0.01 | V11: -0.01 | W11: -0.02 | X11: -0.03 | Y11: -0.03 | Z11: -1.074684 | AA11: -1.074684 | AB11: 90809 | AC11: 4.07 | AD11: 3.69
A12: 90839 | C12: Psytx crisis initial 60 min | D12: A | E12: 3.13 | F12: 0.51 | G12: 0.48 | H12: 0.11 | I12: 3.75 | J12: 3.72 | K12: 90839 | L12: Psytx crisis initial 60 min | M12: A | N12: 3.13 | O12: 0.49 | P12: 0.46 | Q12: 0.09 | R12: 3.71 | S12: 3.68 | T12: 0 | U12: -0.02 | V12: -0.02 | W12: -0.02 | X12: -0.04 | Y12: -0.04 | Z12: -1.432912 | AA12: -1.432912
A13: 90840 | C13: Psytx crisis ea addl 30 min | D13: A | E13: 1.5 | F13: 0.24 | G13: 0.23 | H13: 0.06 | I13: 1.8 | J13: 1.79 | K13: 90840 | L13: Psytx crisis ea addl 30 min | M13: A | N13: 1.5 | O13: 0.23 | P13: 0.22 | Q13: 0.05 | R13: 1.78 | S13: 1.77 | T13: 0 | U13: -0.01 | V13: -0.01 | W13: -0.01 | X13: -0.02 | Y13: -0.02 | Z13: -0.716456 | AA13: -0.716456 | AB13: Key for Status Indicators
A14: 90845 | C14: Psychoanalysis | D14: A | E14: 2.1 | F14: 0.41 | G14: 0.39 | H14: 0.08 | I14: 2.59 | J14: 2.57 | K14: 90845 | L14: Psychoanalysis | M14: A | N14: 2.1 | O14: 0.38 | P14: 0.37 | Q14: 0.07 | R14: 2.55 | S14: 2.54 | T14: 0 | U14: -0.03 | V14: -0.02 | W14: -0.01 | X14: -0.04 | Y14: -0.03 | Z14: -1.432912 | AA14: -1.074684 | AB14: A | AC14: Active Code. These codes are paid separately under the physician fee schedule, if covered. There will be RVUs for codes with this status. The presence of an "A" indicator does not mean that Medicare has made a national coverage determination regarding the service; carriers remain responsible for coverage decisions in the absence of a national Medicare policy.
A15: 90846 | C15: Family psytx w/o patient | D15: R | E15: 2.4 | F15: 0.42 | G15: 0.4 | H15: 0.09 | I15: 2.91 | J15: 2.89 | K15: 90846 | L15: Family psytx w/o patient | M15: R | N15: 2.4 | O15: 0.4 | P15: 0.38 | Q15: 0.08 | R15: 2.88 | S15: 2.86 | T15: 0 | U15: -0.02 | V15: -0.02 | W15: -0.01 | X15: -0.03 | Y15: -0.03 | Z15: -1.074684 | AA15: -1.074684 | AB15: B | AC15: Bundled Code. Payment for covered services are always bundled into payment for other services not specified. There will be no RVUs or payment amount for these codes, and no separate payment is made. When these services are covered, payment for them is subsumed by the payment for the services to which they are incident. (An example is a telephone call from a hospital nurse regarding care of a patient).
A16: 90847 | C16: Family psytx w/patient | D16: R | E16: 2.5 | F16: 0.41 | G16: 0.39 | H16: 0.09 | I16: 3 | J16: 2.98 | K16: 90847 | L16: Family psytx w/patient | M16: R | N16: 2.5 | O16: 0.4 | P16: 0.38 | Q16: 0.08 | R16: 2.98 | S16: 2.96 | T16: 0 | U16: -0.01 | V16: -0.01 | W16: -0.01 | X16: -0.02 | Y16: -0.02 | Z16: -0.716456 | AA16: -0.716456 | AB16: C | AC16: Carriers price the code. Carriers will establish RVUs and payment amounts for these services, generally on an individual case basis following review of documentation such as an operative report.
A17: 90849 | C17: Multiple family group psytx | D17: R | E17: 0.59 | F17: 0.34 | G17: 0.24 | H17: 0.03 | I17: 0.96 | J17: 0.86 | K17: 90849 | L17: Multiple family group psytx | M17: R | N17: 0.59 | O17: 0.37 | P17: 0.27 | Q17: 0.03 | R17: 0.99 | S17: 0.89 | T17: 0 | U17: 0.03 | V17: 0.03 | W17: 0 | X17: 0.03 | Y17: 0.03 | Z17: 1.074684 | AA17: 1.074684 | AB17: D | AC17: Deleted Codes. These codes are deleted effective with the beginning of the applicable year.
A18: 90853 | C18: Group psychotherapy | D18: A | E18: 0.59 | F18: 0.12 | G18: 0.1 | H18: 0.03 | I18: 0.74 | J18: 0.72 | K18: 90853 | L18: Group psychotherapy | M18: A | N18: 0.59 | O18: 0.11 | P18: 0.1 | Q18: 0.02 | R18: 0.72 | S18: 0.71 | T18: 0 | U18: -0.01 | V18: 0 | W18: -0.01 | X18: -0.02 | Y18: -0.01 | Z18: -0.716456 | AA18: -0.358228 | AB18: E | AC18: Excluded from Physician Fee Schedule by regulation. These codes are for items and/or services that CMS chose to exclude from the fee schedule payment by regulation. No RVUS or payment amounts are shown and no payment may be made under the fee schedule for these codes. Payment for them, when covered, generally continues under reasonable charge procedures.
A19: 90863 | C19: Pharmacologic mgmt w/psytx | D19: I | E19: 0 | F19: 0 | G19: 0 | H19: 0 | I19: 0 | J19: 0 | K19: 90863 | L19: Pharmacologic mgmt w/psytx | M19: I | N19: 0 | O19: 0 | P19: 0 | Q19: 0 | R19: 0 | S19: 0 | T19: 0 | U19: 0 | V19: 0 | W19: 0 | X19: 0 | Y19: 0 | Z19: 0 | AA19: 0 | AB19: F | AC19: Deleted/Discontinued Codes. (Code not subject to a 90 day grace period).
A20: 90865 | C20: Narcosynthesis | D20: A | E20: 2.84 | F20: 1.78 | G20: 0.66 | H20: 0.11 | I20: 4.73 | J20: 3.61 | K20: 90865 | L20: Narcosynthesis | M20: A | N20: 2.84 | O20: 1.79 | P20: 0.65 | Q20: 0.09 | R20: 4.72 | S20: 3.58 | T20: 0 | U20: 0.01 | V20: -0.01 | W20: -0.02 | X20: -0.01 | Y20: -0.03 | Z20: -0.358228 | AA20: -1.074684 | AB20: G | AC20: Not valid for Medicare purposes. Medicare uses another code for reporting of, and payment for, these services. (Code subject to a 90 day grace period.)
A21: 90867 | C21: Tcranial magn stim tx plan | D21: C | E21: 0 | F21: 0 | G21: 0 | H21: 0 | I21: 0 | J21: 0 | K21: 90867 | L21: Tcranial magn stim tx plan | M21: C | N21: 0 | O21: 0 | P21: 0 | Q21: 0 | R21: 0 | S21: 0 | T21: 0 | U21: 0 | V21: 0 | W21: 0 | X21: 0 | Y21: 0 | Z21: 0 | AA21: 0 | AB21: H | AC21: Deleted Modifier. This code had an associated TC and/or 26 modifier in the previous year. For the current year, the TC or 26 component shown for the code has been deleted, and the deleted component is shown with a status code of "H".
A22: 90868 | C22: Tcranial magn stim tx deli | D22: C | E22: 0 | F22: 0 | G22: 0 | H22: 0 | I22: 0 | J22: 0 | K22: 90868 | L22: Tcranial magn stim tx deli | M22: C | N22: 0 | O22: 0 | P22: 0 | Q22: 0 | R22: 0 | S22: 0 | T22: 0 | U22: 0 | V22: 0 | W22: 0 | X22: 0 | Y22: 0 | Z22: 0 | AA22: 0 | AB22: I | AC22: Not valid for Medicare purposes. Medicare uses another code for reporting of, and payment for, these services. (Code NOT subject to a 90 day grace period.)
A23: 90869 | C23: Tcran magn stim redetemine | D23: C | E23: 0 | F23: 0 | G23: 0 | H23: 0 | I23: 0 | J23: 0 | K23: 90869 | L23: Tcran magn stim redetemine | M23: C | N23: 0 | O23: 0 | P23: 0 | Q23: 0 | R23: 0 | S23: 0 | T23: 0 | U23: 0 | V23: 0 | W23: 0 | X23: 0 | Y23: 0 | Z23: 0 | AA23: 0 | AB23: N | AC23: Noncovered Services. These services are not covered by Medicare.
A24: 90870 | C24: Electroconvulsive therapy | D24: A | E24: 2.5 | F24: 2.37 | G24: 0.53 | H24: 0.11 | I24: 4.98 | J24: 3.14 | K24: 90870 | L24: Electroconvulsive therapy | M24: A | N24: 2.5 | O24: 2.39 | P24: 0.52 | Q24: 0.08 | R24: 4.97 | S24: 3.1 | T24: 0 | U24: 0.02 | V24: -0.01 | W24: -0.03 | X24: -0.01 | Y24: -0.04 | Z24: -0.358228 | AA24: -1.432912 | AB24: P | AC24: Bundled/Excluded Codes. There are no RVUs and no payment amounts for these services. No separate payment should be made for them under the fee schedule.
A25: 90875 | C25: Psychophysiological therapy | D25: N | E25: 1.2 | F25: 0.47 | G25: 0.46 | H25: 0.08 | I25: 1.75 | J25: 1.74 | K25: 90875 | L25: Psychophysiological therapy | M25: N | N25: 1.2 | O25: 0.46 | P25: 0.46 | Q25: 0.07 | R25: 1.73 | S25: 1.73 | T25: 0 | U25: -0.01 | V25: 0 | W25: -0.01 | X25: -0.02 | Y25: -0.01 | Z25: -0.716456 | AA25: -0.358228 | AC25: --If the item or service is covered as incident to a physician service and is provided on the same day as a physician service, payment for it is bundled into the payment for the physician service to which it is incident. (An example is an elastic bandage furnished by a physician incident to physician service.)
A26: 90876 | C26: Psychophysiological therapy | D26: N | E26: 1.9 | F26: 1.03 | G26: 0.73 | H26: 0.11 | I26: 3.04 | J26: 2.74 | K26: 90876 | L26: Psychophysiological therapy | M26: N | N26: 1.9 | O26: 1.03 | P26: 0.73 | Q26: 0.12 | R26: 3.05 | S26: 2.75 | T26: 0 | U26: 0 | V26: 0 | W26: 0.01 | X26: 0.01 | Y26: 0.01 | Z26: 0.358228 | AA26: 0.358228 | AC26: --If the item or service is covered as other than incident to a physician service, it is excluded from the fee schedule (i.e., colostomy supplies) and should be paid under the other payment provision of the Act.
A27: 90880 | C27: Hypnotherapy | D27: A | E27: 2.19 | F27: 0.58 | G27: 0.38 | H27: 0.08 | I27: 2.85 | J27: 2.65 | K27: 90880 | L27: Hypnotherapy | M27: A | N27: 2.19 | O27: 0.58 | P27: 0.38 | Q27: 0.08 | R27: 2.85 | S27: 2.65 | T27: 0 | U27: 0 | V27: 0 | W27: 0 | X27: 0 | Y27: 0 | Z27: 0 | AA27: 0 | AB27: R | AC27: Restricted Coverage. Special coverage instructions apply. If covered, the service is carrier priced. (NOTE: The majority of codes to which this indicator will be assigned are the alpha-numeric dental codes, which begin with "D". We are assigning the indicator to a limited number of CPT codes which represent services that are covered only in unusual circumstances.)
A28: 90882 | C28: Environmental manipulation | D28: N | E28: 0 | F28: 0 | G28: 0 | H28: 0 | I28: 0 | J28: 0 | K28: 90882 | L28: Environmental manipulation | M28: N | N28: 0 | O28: 0 | P28: 0 | Q28: 0 | R28: 0 | S28: 0 | T28: 0 | U28: 0 | V28: 0 | W28: 0 | X28: 0 | Y28: 0 | Z28: 0 | AA28: 0 | AB28: T | AC28: Injections. There are RVUS and payment amounts for these services, but they are only paid if there are no other services payable under the physician fee schedule billed on the same date by the same provider. If any other services payable under the physician fee schedule are billed on the same date by the same provider, these services are bundled into the physician services for which payment is made. (NOTE: This is a change from the previous definition, which states that injection services are bundled into any other services billed on the same date.)
A29: 90885 | C29: Psy evaluation of records | D29: B | E29: 0.97 | F29: 0.37 | G29: 0.37 | H29: 0.07 | I29: 1.41 | J29: 1.41 | K29: 90885 | L29: Psy evaluation of records | M29: B | N29: 0.97 | O29: 0.37 | P29: 0.37 | Q29: 0.06 | R29: 1.4 | S29: 1.4 | T29: 0 | U29: 0 | V29: 0 | W29: -0.01 | X29: -0.01 | Y29: -0.01 | Z29: -0.358228 | AA29: -0.358228 | AB29: X | AC29: Statutory Exclusion. These codes represent an item or service that is not in the statutory definition of "physician services" for fee schedule payment purposes. No RVUS or payment amounts are shown for these codes, and no payment may be made under the physician fee schedule. (Examples are ambulance services and clinical diagnostic laboratory services.)
A30: 90887 | C30: Consultation with family | D30: B | E30: 1.48 | F30: 0.92 | G30: 0.57 | H30: 0.1 | I30: 2.5 | J30: 2.15 | K30: 90887 | L30: Consultation with family | M30: B | N30: 1.48 | O30: 0.92 | P30: 0.57 | Q30: 0.09 | R30: 2.49 | S30: 2.14 | T30: 0 | U30: 0 | V30: 0 | W30: -0.01 | X30: -0.01 | Y30: -0.01 | Z30: -0.358228 | AA30: -0.358228
A31: 90889 | C31: Preparation of report | D31: B | E31: 0 | F31: 0 | G31: 0 | H31: 0 | I31: 0 | J31: 0 | K31: 90889 | L31: Preparation of report | M31: B | N31: 0 | O31: 0 | P31: 0 | Q31: 0 | R31: 0 | S31: 0 | T31: 0 | U31: 0 | V31: 0 | W31: 0 | X31: 0 | Y31: 0 | Z31: 0 | AA31: 0
A32: 90899 | C32: Psychiatric service/therapy | D32: C | E32: 0 | F32: 0 | G32: 0 | H32: 0 | I32: 0 | J32: 0 | K32: 90899 | L32: Psychiatric service/therapy | M32: C | N32: 0 | O32: 0 | P32: 0 | Q32: 0 | R32: 0 | S32: 0 | T32: 0 | U32: 0 | V32: 0 | W32: 0 | X32: 0 | Y32: 0 | Z32: 0 | AA32: 0
A33: 90901 | C33: Biofeedback train any meth | D33: A | E33: 0.41 | F33: 0.7 | G33: 0.15 | H33: 0.01 | I33: 1.12 | J33: 0.57 | K33: 90901 | L33: Biofeedback train any meth | M33: A | N33: 0.41 | O33: 0.63 | P33: 0.14 | Q33: 0.02 | R33: 1.06 | S33: 0.57 | T33: 0 | U33: -0.07 | V33: -0.01 | W33: 0.01 | X33: -0.06 | Y33: 0 | Z33: -2.149368 | AA33: 0
A34: 90911 | C34: Biofeedback peri/uro/rectal | D34: A | E34: 0.89 | F34: 1.43 | G34: 0.32 | H34: 0.07 | I34: 2.39 | J34: 1.28 | K34: 90911 | L34: Biofeedback peri/uro/rectal | M34: A | N34: 0.89 | O34: 1.43 | P34: 0.31 | Q34: 0.06 | R34: 2.38 | S34: 1.26 | T34: 0 | U34: 0 | V34: -0.01 | W34: -0.01 | X34: -0.01 | Y34: -0.02 | Z34: -0.358228 | AA34: -0.716456
A35: 96101 | C35: Psycho testing by psych/phys | D35: A | E35: 1.86 | F35: 0.33 | G35: 0.31 | H35: 0.07 | I35: 2.26 | J35: 2.24 | K35: 96101 | L35: Psycho testing by psych/phys | M35: A | N35: 1.86 | O35: 0.32 | P35: 0.3 | Q35: 0.06 | R35: 2.24 | S35: 2.22 | T35: 0 | U35: -0.01 | V35: -0.01 | W35: -0.01 | X35: -0.02 | Y35: -0.02 | Z35: -0.716456 | AA35: -0.716456
A36: 96102 | C36: Psycho testing by technician | D36: A | E36: 0.5 | F36: 1.32 | G36: 0.13 | H36: 0.03 | I36: 1.85 | J36: 0.66 | K36: 96102 | L36: Psycho testing by technician | M36: A | N36: 0.5 | O36: 1.26 | P36: 0.12 | Q36: 0.03 | R36: 1.79 | S36: 0.65 | T36: 0 | U36: -0.06 | V36: -0.01 | W36: 0 | X36: -0.06 | Y36: -0.01 | Z36: -2.149368 | AA36: -0.358228
A37: 96103 | C37: Psycho testing admin by comp | D37: A | E37: 0.51 | F37: 0.24 | G37: 0.21 | H37: 0.03 | I37: 0.78 | J37: 0.75 | K37: 96103 | L37: Psycho testing admin by comp | M37: A | N37: 0.51 | O37: 0.23 | P37: 0.21 | Q37: 0.03 | R37: 0.77 | S37: 0.75 | T37: 0 | U37: -0.01 | V37: 0 | W37: 0 | X37: -0.01 | Y37: 0 | Z37: -0.358228 | AA37: 0
A38: 96105 | C38: Assessment of aphasia | D38: A | E38: 1.75 | F38: 1.05 | G38: 1.05 | H38: 0.04 | I38: 2.84 | J38: 2.84 | K38: 96105 | L38: Assessment of aphasia | M38: A | N38: 1.75 | O38: 1.11 | P38: 1.11 | Q38: 0.08 | R38: 2.94 | S38: 2.94 | T38: 0 | U38: 0.06 | V38: 0.06 | W38: 0.04 | X38: 0.1 | Y38: 0.1 | Z38: 3.58228 | AA38: 3.58228
A39: 96110 | C39: Developmental screen | D39: N | E39: 0 | F39: 0.22 | G39: 0.22 | H39: 0.01 | I39: 0.23 | J39: 0.23 | K39: 96110 | L39: Developmental screen w/score | M39: N | N39: 0 | O39: 0.26 | P39: 0.26 | Q39: 0.01 | R39: 0.27 | S39: 0.27 | T39: 0 | U39: 0.04 | V39: 0.04 | W39: 0 | X39: 0.04 | Y39: 0.04 | Z39: 1.432912 | AA39: 1.432912
A40: 96111 | C40: Developmental test extend | D40: A | E40: 2.6 | F40: 0.88 | G40: 0.68 | H40: 0.15 | I40: 3.63 | J40: 3.43 | K40: 96111 | L40: Developmental test extend | M40: A | N40: 2.6 | O40: 0.89 | P40: 0.7 | Q40: 0.11 | R40: 3.6 | S40: 3.41 | T40: 0 | U40: 0.01 | V40: 0.02 | W40: -0.04 | X40: -0.03 | Y40: -0.02 | Z40: -1.074684 | AA40: -0.716456
A41: 96116 | C41: Neurobehavioral status exam | D41: A | E41: 1.86 | F41: 0.69 | G41: 0.52 | H41: 0.1 | I41: 2.65 | J41: 2.48 | K41: 96116 | L41: Neurobehavioral status exam | M41: A | N41: 1.86 | O41: 0.66 | P41: 0.49 | Q41: 0.09 | R41: 2.61 | S41: 2.44 | T41: 0 | U41: -0.03 | V41: -0.03 | W41: -0.01 | X41: -0.04 | Y41: -0.04 | Z41: -1.432912 | AA41: -1.432912
A42: 96118 | C42: Neuropsych tst by psych/phys | D42: A | E42: 1.86 | F42: 0.84 | G42: 0.3 | H42: 0.07 | I42: 2.77 | J42: 2.23 | K42: 96118 | L42: Neuropsych tst by psych/phys | M42: A | N42: 1.86 | O42: 0.82 | P42: 0.29 | Q42: 0.06 | R42: 2.74 | S42: 2.21 | T42: 0 | U42: -0.02 | V42: -0.01 | W42: -0.01 | X42: -0.03 | Y42: -0.02 | Z42: -1.074684 | AA42: -0.716456
A43: 96119 | C43: Neuropsych testing by tec | D43: A | E43: 0.55 | F43: 1.71 | G43: 0.1 | H43: 0.01 | I43: 2.27 | J43: 0.66 | K43: 96119 | L43: Neuropsych testing by tec | M43: A | N43: 0.55 | O43: 1.7 | P43: 0.1 | Q43: 0.02 | R43: 2.27 | S43: 0.67 | T43: 0 | U43: -0.01 | V43: 0 | W43: 0.01 | X43: 0 | Y43: 0.01 | Z43: 0 | AA43: 0.358228
A44: 96120 | C44: Neuropsych tst admin w/comp | D44: A | E44: 0.51 | F44: 0.8 | G44: 0.19 | H44: 0.03 | I44: 1.34 | J44: 0.73 | K44: 96120 | L44: Neuropsych tst admin w/comp | M44: A | N44: 0.51 | O44: 0.8 | P44: 0.19 | Q44: 0.03 | R44: 1.34 | S44: 0.73 | T44: 0 | U44: 0 | V44: 0 | W44: 0 | X44: 0 | Y44: 0 | Z44: 0 | AA44: 0
A45: 96125 | C45: Cognitive test by hc pro | D45: A | E45: 1.7 | F45: 1.43 | G45: 1.43 | H45: 0.07 | I45: 3.2 | J45: 3.2 | K45: 96125 | L45: Cognitive test by hc pro | M45: A | N45: 1.7 | O45: 1.51 | P45: 1.51 | Q45: 0.08 | R45: 3.29 | S45: 3.29 | T45: 0 | U45: 0.08 | V45: 0.08 | W45: 0.01 | X45: 0.09 | Y45: 0.09 | Z45: 3.224052 | AA45: 3.224052
K46: 96127 | L46: Brief emotional/behav assmt | M46: A | N46: 0 | O46: 0.14 | P46: 0.14 | Q46: 0.01 | R46: 0.15 | S46: 0.15 | T46: new | U46: new | V46: new | W46: new | X46: new | Y46: new | Z46: new | AA46: new
A47: 96150 | C47: Assess hlth/behave init | D47: A | E47: 0.5 | F47: 0.09 | G47: 0.08 | H47: 0.01 | I47: 0.6 | J47: 0.59 | K47: 96150 | L47: Assess hlth/behave init | M47: A | N47: 0.5 | O47: 0.09 | P47: 0.08 | Q47: 0.02 | R47: 0.61 | S47: 0.6 | T47: 0 | U47: 0 | V47: 0 | W47: 0.01 | X47: 0.01 | Y47: 0.01 | Z47: 0.358228 | AA47: 0.358228
A48: 96151 | C48: Assess hlth/behave subseq | D48: A | E48: 0.48 | F48: 0.09 | G48: 0.08 | H48: 0.01 | I48: 0.58 | J48: 0.57 | K48: 96151 | L48: Assess hlth/behave subseq | M48: A | N48: 0.48 | O48: 0.08 | P48: 0.07 | Q48: 0.02 | R48: 0.58 | S48: 0.57 | T48: 0 | U48: -0.01 | V48: -0.01 | W48: 0.01 | X48: 0 | Y48: 0 | Z48: 0 | AA48: 0
A49: 96152 | C49: Intervene hlth/behave indiv | D49: A | E49: 0.46 | F49: 0.08 | G49: 0.07 | H49: 0.01 | I49: 0.55 | J49: 0.54 | K49: 96152 | L49: Intervene hlth/behave indiv | M49: A | N49: 0.46 | O49: 0.08 | P49: 0.07 | Q49: 0.01 | R49: 0.55 | S49: 0.54 | T49: 0 | U49: 0 | V49: 0 | W49: 0 | X49: 0 | Y49: 0 | Z49: 0 | AA49: 0
A50: 96153 | C50: Intervene hlth/behave group | D50: A | E50: 0.1 | F50: 0.02 | G50: 0.02 | H50: 0.01 | I50: 0.13 | J50: 0.13 | K50: 96153 | L50: Intervene hlth/behave group | M50: A | N50: 0.1 | O50: 0.02 | P50: 0.01 | Q50: 0.01 | R50: 0.13 | S50: 0.12 | T50: 0 | U50: 0 | V50: -0.01 | W50: 0 | X50: 0 | Y50: -0.01 | Z50: 0 | AA50: -0.358228
A51: 96154 | C51: Interv hlth/behav fam w/pt | D51: A | E51: 0.45 | F51: 0.08 | G51: 0.07 | H51: 0.01 | I51: 0.54 | J51: 0.53 | K51: 96154 | L51: Interv hlth/behav fam w/pt | M51: A | N51: 0.45 | O51: 0.08 | P51: 0.07 | Q51: 0.01 | R51: 0.54 | S51: 0.53 | T51: 0 | U51: 0 | V51: 0 | W51: 0 | X51: 0 | Y51: 0 | Z51: 0 | AA51: 0
A52: 96155 | C52: Interv hlth/behav fam no pt | D52: N | E52: 0.44 | F52: 0.17 | G52: 0.17 | H52: 0.03 | I52: 0.64 | J52: 0.64 | K52: 96155 | L52: Interv hlth/behav fam no pt | M52: N | N52: 0.44 | O52: 0.17 | P52: 0.17 | Q52: 0.03 | R52: 0.64 | S52: 0.64 | T52: 0 | U52: 0 | V52: 0 | W52: 0 | X52: 0 | Y52: 0 | Z52: 0 | AA52: 0
A53: 99201 | C53: Office/outpatient visit new | D53: A | E53: 0.48 | F53: 0.69 | G53: 0.22 | H53: 0.04 | I53: 1.21 | J53: 0.74 | K53: 99201 | L53: Office/outpatient visit new | M53: A | N53: 0.48 | O53: 0.7 | P53: 0.23 | Q53: 0.04 | R53: 1.22 | S53: 0.75 | T53: 0 | U53: 0.01 | V53: 0.01 | W53: 0 | X53: 0.01 | Y53: 0.01 | Z53: 0.358228 | AA53: 0.358228
A54: 99202 | C54: Office/outpatient visit new | D54: A | E54: 0.93 | F54: 1.08 | G54: 0.41 | H54: 0.07 | I54: 2.08 | J54: 1.41 | K54: 99202 | L54: Office/outpatient visit new | M54: A | N54: 0.93 | O54: 1.09 | P54: 0.41 | Q54: 0.07 | R54: 2.09 | S54: 1.41 | T54: 0 | U54: 0.01 | V54: 0 | W54: 0 | X54: 0.01 | Y54: 0 | Z54: 0.358228 | AA54: 0
A55: 99203 | C55: Office/outpatient visit new | D55: A | E55: 1.42 | F55: 1.47 | G55: 0.6 | H55: 0.13 | I55: 3.02 | J55: 2.15 | K55: 99203 | L55: Office/outpatient visit new | M55: A | N55: 1.42 | O55: 1.48 | P55: 0.6 | Q55: 0.15 | R55: 3.05 | S55: 2.17 | T55: 0 | U55: 0.01 | V55: 0 | W55: 0.02 | X55: 0.03 | Y55: 0.02 | Z55: 1.074684 | AA55: 0.716456
A56: 99204 | C56: Office/outpatient visit new | D56: A | E56: 2.43 | F56: 1.99 | G56: 1.03 | H56: 0.22 | I56: 4.64 | J56: 3.68 | K56: 99204 | L56: Office/outpatient visit new | M56: A | N56: 2.43 | O56: 1.99 | P56: 1.02 | Q56: 0.21 | R56: 4.63 | S56: 3.66 | T56: 0 | U56: 0 | V56: -0.01 | W56: -0.01 | X56: -0.01 | Y56: -0.02 | Z56: -0.358228 | AA56: -0.716456
A57: 99205 | C57: Office/outpatient visit new | D57: A | E57: 3.17 | F57: 2.35 | G57: 1.32 | H57: 0.26 | I57: 5.78 | J57: 4.75 | K57: 99205 | L57: Office/outpatient visit new | M57: A | N57: 3.17 | O57: 2.36 | P57: 1.31 | Q57: 0.28 | R57: 5.81 | S57: 4.76 | T57: 0 | U57: 0.01 | V57: -0.01 | W57: 0.02 | X57: 0.03 | Y57: 0.01 | Z57: 1.074684 | AA57: 0.358228
A58: 99211 | C58: Office/outpatient visit est | D58: A | E58: 0.18 | F58: 0.37 | G58: 0.07 | H58: 0.01 | I58: 0.56 | J58: 0.26 | K58: 99211 | L58: Office/outpatient visit est | M58: A | N58: 0.18 | O58: 0.37 | P58: 0.07 | Q58: 0.01 | R58: 0.56 | S58: 0.26 | T58: 0 | U58: 0 | V58: 0 | W58: 0 | X58: 0 | Y58: 0 | Z58: 0 | AA58: 0
A59: 99212 | C59: Office/outpatient visit est | D59: A | E59: 0.48 | F59: 0.7 | G59: 0.19 | H59: 0.04 | I59: 1.22 | J59: 0.71 | K59: 99212 | L59: Office/outpatient visit est | M59: A | N59: 0.48 | O59: 0.7 | P59: 0.2 | Q59: 0.04 | R59: 1.22 | S59: 0.72 | T59: 0 | U59: 0 | V59: 0.01 | W59: 0 | X59: 0 | Y59: 0.01 | Z59: 0 | AA59: 0.358228
A60: 99213 | C60: Office/outpatient visit est | D60: A | E60: 0.97 | F60: 1 | G60: 0.4 | H60: 0.07 | I60: 2.04 | J60: 1.44 | K60: 99213 | L60: Office/outpatient visit est | M60: A | N60: 0.97 | O60: 1.01 | P60: 0.4 | Q60: 0.06 | R60: 2.04 | S60: 1.43 | T60: 0 | U60: 0.01 | V60: 0 | W60: -0.01 | X60: 0 | Y60: -0.01 | Z60: 0 | AA60: -0.358228
A61: 99214 | C61: Office/outpatient visit est | D61: A | E61: 1.5 | F61: 1.41 | G61: 0.61 | H61: 0.1 | I61: 3.01 | J61: 2.21 | K61: 99214 | L61: Office/outpatient visit est | M61: A | N61: 1.5 | O61: 1.42 | P61: 0.61 | Q61: 0.09 | R61: 3.01 | S61: 2.2 | T61: 0 | U61: 0.01 | V61: 0 | W61: -0.01 | X61: 0 | Y61: -0.01 | Z61: 0 | AA61: -0.358228
A62: 99215 | C62: Office/outpatient visit est | D62: A | E62: 2.11 | F62: 1.79 | G62: 0.87 | H62: 0.13 | I62: 4.03 | J62: 3.11 | K62: 99215 | L62: Office/outpatient visit est | M62: A | N62: 2.11 | O62: 1.81 | P62: 0.87 | Q62: 0.16 | R62: 4.08 | S62: 3.14 | T62: 0 | U62: 0.02 | V62: 0 | W62: 0.03 | X62: 0.05 | Y62: 0.03 | Z62: 1.79114 | AA62: 1.074684
A63: 99217 | C63: Observation care discharge | D63: A | E63: 1.28 | F63: 0.67 | G63: 0.67 | H63: 0.08 | I63: 2.03 | J63: 2.03 | K63: 99217 | L63: Observation care discharge | M63: A | N63: 1.28 | O63: 0.68 | P63: 0.68 | Q63: 0.08 | R63: 2.04 | S63: 2.04 | T63: 0 | U63: 0.01 | V63: 0.01 | W63: 0 | X63: 0.01 | Y63: 0.01 | Z63: 0.358228 | AA63: 0.358228
A64: 99218 | C64: Initial observation care | D64: A | E64: 1.92 | F64: 0.75 | G64: 0.75 | H64: 0.11 | I64: 2.78 | J64: 2.78 | K64: 99218 | L64: Initial observation care | M64: A | N64: 1.92 | O64: 0.75 | P64: 0.75 | Q64: 0.16 | R64: 2.83 | S64: 2.83 | T64: 0 | U64: 0 | V64: 0 | W64: 0.05 | X64: 0.05 | Y64: 0.05 | Z64: 1.79114 | AA64: 1.79114
A65: 99219 | C65: Initial observation care | D65: A | E65: 2.6 | F65: 1.04 | G65: 1.04 | H65: 0.16 | I65: 3.8 | J65: 3.8 | K65: 99219 | L65: Initial observation care | M65: A | N65: 2.6 | O65: 1.04 | P65: 1.04 | Q65: 0.19 | R65: 3.83 | S65: 3.83 | T65: 0 | U65: 0 | V65: 0 | W65: 0.03 | X65: 0.03 | Y65: 0.03 | Z65: 1.074684 | AA65: 1.074684
A66: 99220 | C66: Initial observation care | D66: A | E66: 3.56 | F66: 1.41 | G66: 1.41 | H66: 0.23 | I66: 5.2 | J66: 5.2 | K66: 99220 | L66: Initial observation care | M66: A | N66: 3.56 | O66: 1.43 | P66: 1.43 | Q66: 0.24 | R66: 5.23 | S66: 5.23 | T66: 0 | U66: 0.02 | V66: 0.02 | W66: 0.01 | X66: 0.03 | Y66: 0.03 | Z66: 1.074684 | AA66: 1.074684
A67: 99221 | C67: Initial hospital care | D67: A | E67: 1.92 | F67: 0.76 | G67: 0.76 | H67: 0.17 | I67: 2.85 | J67: 2.85 | K67: 99221 | L67: Initial hospital care | M67: A | N67: 1.92 | O67: 0.76 | P67: 0.76 | Q67: 0.19 | R67: 2.87 | S67: 2.87 | T67: 0 | U67: 0 | V67: 0 | W67: 0.02 | X67: 0.02 | Y67: 0.02 | Z67: 0.716456 | AA67: 0.716456
A68: 99222 | C68: Initial hospital care | D68: A | E68: 2.61 | F68: 1.05 | G68: 1.05 | H68: 0.21 | I68: 3.87 | J68: 3.87 | K68: 99222 | L68: Initial hospital care | M68: A | N68: 2.61 | O68: 1.05 | P68: 1.05 | Q68: 0.21 | R68: 3.87 | S68: 3.87 | T68: =N68-E68 -> 0 | U68: =O68-F68 -> 0 | V68: =P68-G68 -> 0 | W68: =Q68-H68 -> 0 | X68: =R68-I68 -> 0 | Y68: =S68-J68 -> 0 | Z68: 0 | AA68: 0
A69: 99223 | C69: Initial hospital care | D69: A | E69: 3.86 | F69: 1.56 | G69: 1.56 | H69: 0.28 | I69: 5.7 | J69: 5.7 | K69: 99223 | L69: Initial hospital care | M69: A | N69: 3.86 | O69: 1.56 | P69: 1.56 | Q69: 0.28 | R69: 5.7 | S69: 5.7 | T69: 0 | U69: 0 | V69: 0 | W69: 0 | X69: 0 | Y69: 0 | Z69: =X69*$Z$1 -> 0 | AA69: =Y69*$Z$1 -> 0
A70: 99224 | C70: Subsequent observation care | D70: A | E70: 0.76 | F70: 0.3 | G70: 0.3 | H70: 0.06 | I70: 1.12 | J70: 1.12 | K70: 99224 | L70: Subsequent observation care | M70: A | N70: 0.76 | O70: 0.3 | P70: 0.3 | Q70: 0.05 | R70: 1.11 | S70: 1.11 | T70: 0 | U70: 0 | V70: 0 | W70: -0.01 | X70: -0.01 | Y70: -0.01 | Z70: -0.358228 | AA70: -0.358228
A71: 99225 | C71: Subsequent observation care | D71: A | E71: 1.39 | F71: 0.57 | G71: 0.57 | H71: 0.07 | I71: 2.03 | J71: 2.03 | K71: 99225 | L71: Subsequent observation care | M71: A | N71: 1.39 | O71: 0.57 | P71: 0.57 | Q71: 0.09 | R71: 2.05 | S71: 2.05 | T71: 0 | U71: 0 | V71: 0 | W71: 0.02 | X71: 0.02 | Y71: 0.02 | Z71: 0.716456 | AA71: 0.716456
A72: 99226 | C72: Subsequent observation care | D72: A | E72: 2 | F72: 0.82 | G72: 0.82 | H72: 0.11 | I72: 2.93 | J72: 2.93 | K72: 99226 | L72: Subsequent observation care | M72: A | N72: 2 | O72: 0.83 | P72: 0.83 | Q72: 0.12 | R72: 2.95 | S72: 2.95 | T72: 0 | U72: 0.01 | V72: 0.01 | W72: 0.01 | X72: 0.02 | Y72: 0.02 | Z72: 0.716456 | AA72: 0.716456
A73: 99231 | C73: Subsequent hospital care | D73: A | E73: 0.76 | F73: 0.29 | G73: 0.29 | H73: 0.05 | I73: 1.1 | J73: 1.1 | K73: 99231 | L73: Subsequent hospital care | M73: A | N73: 0.76 | O73: 0.29 | P73: 0.29 | Q73: 0.05 | R73: 1.1 | S73: 1.1 | T73: 0 | U73: 0 | V73: 0 | W73: 0 | X73: 0 | Y73: 0 | Z73: 0 | AA73: 0
A74: 99232 | C74: Subsequent hospital care | D74: A | E74: 1.39 | F74: 0.55 | G74: 0.55 | H74: 0.08 | I74: 2.02 | J74: 2.02 | K74: 99232 | L74: Subsequent hospital care | M74: A | N74: 1.39 | O74: 0.56 | P74: 0.56 | Q74: 0.09 | R74: 2.04 | S74: 2.04 | T74: 0 | U74: 0.01 | V74: 0.01 | W74: 0.01 | X74: 0.02 | Y74: 0.02 | Z74: 0.716456 | AA74: 0.716456
A75: 99233 | C75: Subsequent hospital care | D75: A | E75: 2 | F75: 0.8 | G75: 0.8 | H75: 0.11 | I75: 2.91 | J75: 2.91 | K75: 99233 | L75: Subsequent hospital care | M75: A | N75: 2 | O75: 0.8 | P75: 0.8 | Q75: 0.15 | R75: 2.95 | S75: 2.95 | T75: 0 | U75: 0 | V75: 0 | W75: 0.04 | X75: 0.04 | Y75: 0.04 | Z75: 1.432912 | AA75: 1.432912
A76: 99234 | C76: Observ/hosp same date | D76: A | E76: 2.56 | F76: 1.02 | G76: 1.02 | H76: 0.21 | I76: 3.79 | J76: 3.79 | K76: 99234 | L76: Observ/hosp same date | M76: A | N76: 2.56 | O76: 1.01 | P76: 1.01 | Q76: 0.21 | R76: 3.78 | S76: 3.78 | T76: 0 | U76: -0.01 | V76: -0.01 | W76: 0 | X76: -0.01 | Y76: -0.01 | Z76: -0.358228 | AA76: -0.358228
A77: 99235 | C77: Observ/hosp same date | D77: A | E77: 3.24 | F77: 1.29 | G77: 1.29 | H77: 0.21 | I77: 4.74 | J77: 4.74 | K77: 99235 | L77: Observ/hosp same date | M77: A | N77: 3.24 | O77: 1.3 | P77: 1.3 | Q77: 0.23 | R77: 4.77 | S77: 4.77 | T77: 0 | U77: 0.01 | V77: 0.01 | W77: 0.02 | X77: 0.03 | Y77: 0.03 | Z77: 1.074684 | AA77: 1.074684
A78: 99236 | C78: Observ/hosp same date | D78: A | E78: 4.2 | F78: 1.64 | G78: 1.64 | H78: 0.28 | I78: 6.12 | J78: 6.12 | K78: 99236 | L78: Observ/hosp same date | M78: A | N78: 4.2 | O78: 1.65 | P78: 1.65 | Q78: 0.29 | R78: 6.14 | S78: 6.14 | T78: 0 | U78: 0.01 | V78: 0.01 | W78: 0.01 | X78: 0.02 | Y78: 0.02 | Z78: 0.716456 | AA78: 0.716456
A79: 99238 | C79: Hospital discharge day | D79: A | E79: 1.28 | F79: 0.68 | G79: 0.68 | H79: 0.07 | I79: 2.03 | J79: 2.03 | K79: 99238 | L79: Hospital discharge day | M79: A | N79: 1.28 | O79: 0.68 | P79: 0.68 | Q79: 0.08 | R79: 2.04 | S79: 2.04 | T79: 0 | U79: 0 | V79: 0 | W79: 0.01 | X79: 0.01 | Y79: 0.01 | Z79: 0.358228 | AA79: 0.358228
A80: 99239 | C80: Hospital discharge day | D80: A | E80: 1.9 | F80: 0.99 | G80: 0.99 | H80: 0.11 | I80: 3 | J80: 3 | K80: 99239 | L80: Hospital discharge day | M80: A | N80: 1.9 | O80: 1.01 | P80: 1.01 | Q80: 0.11 | R80: 3.02 | S80: 3.02 | T80: 0 | U80: 0.02 | V80: 0.02 | W80: 0 | X80: 0.02 | Y80: 0.02 | Z80: 0.716456 | AA80: 0.716456
A81: 99241 | C81: Office consultation | D81: I | E81: 0.64 | F81: 0.66 | G81: 0.24 | H81: 0.07 | I81: 1.37 | J81: 0.95 | K81: 99241 | L81: Office consultation | M81: I | N81: 0.64 | O81: 0.66 | P81: 0.24 | Q81: 0.07 | R81: 1.37 | S81: 0.95 | T81: 0 | U81: 0 | V81: 0 | W81: 0 | X81: 0 | Y81: 0 | Z81: 0 | AA81: 0
A82: 99242 | C82: Office consultation | D82: I | E82: 1.34 | F82: 1.1 | G82: 0.51 | H82: 0.13 | I82: 2.57 | J82: 1.98 | K82: 99242 | L82: Office consultation | M82: I | N82: 1.34 | O82: 1.1 | P82: 0.51 | Q82: 0.13 | R82: 2.57 | S82: 1.98 | T82: 0 | U82: 0 | V82: 0 | W82: 0 | X82: 0 | Y82: 0 | Z82: 0 | AA82: 0
A83: 99243 | C83: Office consultation | D83: I | E83: 1.88 | F83: 1.46 | G83: 0.71 | H83: 0.17 | I83: 3.51 | J83: 2.76 | K83: 99243 | L83: Office consultation | M83: I | N83: 1.88 | O83: 1.46 | P83: 0.71 | Q83: 0.17 | R83: 3.51 | S83: 2.76 | T83: 0 | U83: 0 | V83: 0 | W83: 0 | X83: 0 | Y83: 0 | Z83: 0 | AA83: 0
A84: 99244 | C84: Office consultation | D84: I | E84: 3.02 | F84: 1.96 | G84: 1.14 | H84: 0.21 | I84: 5.19 | J84: 4.37 | K84: 99244 | L84: Office consultation | M84: I | N84: 3.02 | O84: 1.96 | P84: 1.14 | Q84: 0.21 | R84: 5.19 | S84: 4.37 | T84: 0 | U84: 0 | V84: 0 | W84: 0 | X84: 0 | Y84: 0 | Z84: 0 | AA84: 0
A85: 99245 | C85: Office consultation | D85: I | E85: 3.77 | F85: 2.3 | G85: 1.38 | H85: 0.28 | I85: 6.35 | J85: 5.43 | K85: 99245 | L85: Office consultation | M85: I | N85: 3.77 | O85: 2.3 | P85: 1.38 | Q85: 0.28 | R85: 6.35 | S85: 5.43 | T85: 0 | U85: 0 | V85: 0 | W85: 0 | X85: 0 | Y85: 0 | Z85: 0 | AA85: 0
A86: 99251 | C86: Inpatient consultation | D86: I | E86: 1 | F86: 0.32 | G86: 0.32 | H86: 0.07 | I86: 1.39 | J86: 1.39 | K86: 99251 | L86: Inpatient consultation | M86: I | N86: 1 | O86: 0.32 | P86: 0.32 | Q86: 0.07 | R86: 1.39 | S86: 1.39 | T86: 0 | U86: 0 | V86: 0 | W86: 0 | X86: 0 | Y86: 0 | Z86: 0 | AA86: 0
A87: 99252 | C87: Inpatient consultation | D87: I | E87: 1.5 | F87: 0.52 | G87: 0.52 | H87: 0.11 | I87: 2.13 | J87: 2.13 | K87: 99252 | L87: Inpatient consultation | M87: I | N87: 1.5 | O87: 0.52 | P87: 0.52 | Q87: 0.11 | R87: 2.13 | S87: 2.13 | T87: 0 | U87: 0 | V87: 0 | W87: 0 | X87: 0 | Y87: 0 | Z87: 0 | AA87: 0
A88: 99253 | C88: Inpatient consultation | D88: I | E88: 2.27 | F88: 0.84 | G88: 0.84 | H88: 0.14 | I88: 3.25 | J88: 3.25 | K88: 99253 | L88: Inpatient consultation | M88: I | N88: 2.27 | O88: 0.84 | P88: 0.84 | Q88: 0.14 | R88: 3.25 | S88: 3.25 | T88: 0 | U88: 0 | V88: 0 | W88: 0 | X88: 0 | Y88: 0 | Z88: 0 | AA88: 0
A89: 99254 | C89: Inpatient consultation | D89: I | E89: 3.29 | F89: 1.23 | G89: 1.23 | H89: 0.17 | I89: 4.69 | J89: 4.69 | K89: 99254 | L89: Inpatient consultation | M89: I | N89: 3.29 | O89: 1.23 | P89: 1.23 | Q89: 0.17 | R89: 4.69 | S89: 4.69 | T89: 0 | U89: 0 | V89: 0 | W89: 0 | X89: 0 | Y89: 0 | Z89: 0 | AA89: 0
A90: 99255 | C90: Inpatient consultation | D90: I | E90: 4 | F90: 1.44 | G90: 1.44 | H90: 0.23 | I90: 5.67 | J90: 5.67 | K90: 99255 | L90: Inpatient consultation | M90: I | N90: 4 | O90: 1.44 | P90: 1.44 | Q90: 0.23 | R90: 5.67 | S90: 5.67 | T90: 0 | U90: 0 | V90: 0 | W90: 0 | X90: 0 | Y90: 0 | Z90: 0 | AA90: 0
A91: 99281 | C91: Emergency dept visit | D91: A | E91: 0.45 | F91: 0.11 | G91: 0.11 | H91: 0.03 | I91: 0.59 | J91: 0.59 | K91: 99281 | L91: Emergency dept visit | M91: A | N91: 0.45 | O91: 0.11 | P91: 0.11 | Q91: 0.03 | R91: 0.59 | S91: 0.59 | T91: 0 | U91: 0 | V91: 0 | W91: 0 | X91: 0 | Y91: 0 | Z91: 0 | AA91: 0
A92: 99282 | C92: Emergency dept visit | D92: A | E92: 0.88 | F92: 0.21 | G92: 0.21 | H92: 0.07 | I92: 1.16 | J92: 1.16 | K92: 99282 | L92: Emergency dept visit | M92: A | N92: 0.88 | O92: 0.21 | P92: 0.21 | Q92: 0.07 | R92: 1.16 | S92: 1.16 | T92: 0 | U92: 0 | V92: 0 | W92: 0 | X92: 0 | Y92: 0 | Z92: 0 | AA92: 0
A93: 99283 | C93: Emergency dept visit | D93: A | E93: 1.34 | F93: 0.29 | G93: 0.29 | H93: 0.1 | I93: 1.73 | J93: 1.73 | K93: 99283 | L93: Emergency dept visit | M93: A | N93: 1.34 | O93: 0.29 | P93: 0.29 | Q93: 0.11 | R93: 1.74 | S93: 1.74 | T93: 0 | U93: 0 | V93: 0 | W93: 0.01 | X93: 0.01 | Y93: 0.01 | Z93: 0.358228 | AA93: 0.358228
A94: 99284 | C94: Emergency dept visit | D94: A | E94: 2.56 | F94: 0.53 | G94: 0.53 | H94: 0.21 | I94: 3.3 | J94: 3.3 | K94: 99284 | L94: Emergency dept visit | M94: A | N94: 2.56 | O94: 0.53 | P94: 0.53 | Q94: 0.24 | R94: 3.33 | S94: 3.33 | T94: 0 | U94: 0 | V94: 0 | W94: 0.03 | X94: 0.03 | Y94: 0.03 | Z94: 1.074684 | AA94: 1.074684
A95: 99285 | C95: Emergency dept visit | D95: A | E95: 3.8 | F95: 0.76 | G95: 0.76 | H95: 0.29 | I95: 4.85 | J95: 4.85 | K95: 99285 | L95: Emergency dept visit | M95: A | N95: 3.8 | O95: 0.75 | P95: 0.75 | Q95: 0.36 | R95: 4.91 | S95: 4.91 | T95: 0 | U95: -0.01 | V95: -0.01 | W95: 0.07 | X95: 0.06 | Y95: 0.06 | Z95: 2.149368 | AA95: 2.149368
A96: 99288 | C96: Direct advanced life support | D96: B | E96: 0 | F96: 0 | G96: 0 | H96: 0 | I96: 0 | J96: 0 | K96: 99288 | L96: Direct advanced life support | M96: B | N96: 0 | O96: 0 | P96: 0 | Q96: 0 | R96: 0 | S96: 0 | T96: 0 | U96: 0 | V96: 0 | W96: 0 | X96: 0 | Y96: 0 | Z96: 0 | AA96: 0
A97: 99291 | C97: Critical care first hour | D97: A | E97: 4.5 | F97: 2.84 | G97: 1.44 | H97: 0.33 | I97: 7.67 | J97: 6.27 | K97: 99291 | L97: Critical care first hour | M97: A | N97: 4.5 | O97: 2.86 | P97: 1.43 | Q97: 0.38 | R97: 7.74 | S97: 6.31 | T97: 0 | U97: 0.02 | V97: -0.01 | W97: 0.05 | X97: 0.07 | Y97: 0.04 | Z97: 2.507596 | AA97: 1.432912
A98: 99292 | C98: Critical care addl 30 min | D98: A | E98: 2.25 | F98: 1.02 | G98: 0.72 | H98: 0.17 | I98: 3.44 | J98: 3.14 | K98: 99292 | L98: Critical care addl 30 min | M98: A | N98: 2.25 | O98: 1.02 | P98: 0.71 | Q98: 0.2 | R98: 3.47 | S98: 3.16 | T98: 0 | U98: 0 | V98: -0.01 | W98: 0.03 | X98: 0.03 | Y98: 0.02 | Z98: 1.074684 | AA98: 0.716456
A99: 99304 | C99: Nursing facility care init | D99: A | E99: 1.64 | F99: 0.84 | G99: 0.84 | H99: 0.13 | I99: 2.61 | J99: 2.61 | K99: 99304 | L99: Nursing facility care init | M99: A | N99: 1.64 | O99: 0.83 | P99: 0.83 | Q99: 0.1 | R99: 2.57 | S99: 2.57 | T99: 0 | U99: -0.01 | V99: -0.01 | W99: -0.03 | X99: -0.04 | Y99: -0.04 | Z99: -1.432912 | AA99: -1.432912
A100: 99305 | C100: Nursing facility care init | D100: A | E100: 2.35 | F100: 1.18 | G100: 1.18 | H100: 0.19 | I100: 3.72 | J100: 3.72 | K100: 99305 | L100: Nursing facility care init | M100: A | N100: 2.35 | O100: 1.18 | P100: 1.18 | Q100: 0.15 | R100: 3.68 | S100: 3.68 | T100: 0 | U100: 0 | V100: 0 | W100: -0.04 | X100: -0.04 | Y100: -0.04 | Z100: -1.432912 | AA100: -1.432912
A101: 99306 | C101: Nursing facility care init | D101: A | E101: 3.06 | F101: 1.43 | G101: 1.43 | H101: 0.22 | I101: 4.71 | J101: 4.71 | K101: 99306 | L101: Nursing facility care init | M101: A | N101: 3.06 | O101: 1.44 | P101: 1.44 | Q101: 0.19 | R101: 4.69 | S101: 4.69 | T101: 0 | U101: 0.01 | V101: 0.01 | W101: -0.03 | X101: -0.02 | Y101: -0.02 | Z101: -0.716456 | AA101: -0.716456
A102: 99307 | C102: Nursing fac care subseq | D102: A | E102: 0.76 | F102: 0.45 | G102: 0.45 | H102: 0.04 | I102: 1.25 | J102: 1.25 | K102: 99307 | L102: Nursing fac care subseq | M102: A | N102: 0.76 | O102: 0.45 | P102: 0.45 | Q102: 0.04 | R102: 1.25 | S102: 1.25 | T102: 0 | U102: 0 | V102: 0 | W102: 0 | X102: 0 | Y102: 0 | Z102: 0 | AA102: 0
A103: 99308 | C103: Nursing fac care subseq | D103: A | E103: 1.16 | F103: 0.7 | G103: 0.7 | H103: 0.07 | I103: 1.93 | J103: 1.93 | K103: 99308 | L103: Nursing fac care subseq | M103: A | N103: 1.16 | O103: 0.71 | P103: 0.71 | Q103: 0.06 | R103: 1.93 | S103: 1.93 | T103: 0 | U103: 0.01 | V103: 0.01 | W103: -0.01 | X103: 0 | Y103: 0 | Z103: 0 | AA103: 0
A104: 99309 | C104: Nursing fac care subseq | D104: A | E104: 1.55 | F104: 0.91 | G104: 0.91 | H104: 0.08 | I104: 2.54 | J104: 2.54 | K104: 99309 | L104: Nursing fac care subseq | M104: A | N104: 1.55 | O104: 0.92 | P104: 0.92 | Q104: 0.09 | R104: 2.56 | S104: 2.56 | T104: 0 | U104: 0.01 | V104: 0.01 | W104: 0.01 | X104: 0.02 | Y104: 0.02 | Z104: 0.716456 | AA104: 0.716456
A105: 99310 | C105: Nursing fac care subseq | D105: A | E105: 2.35 | F105: 1.3 | G105: 1.3 | H105: 0.13 | I105: 3.78 | J105: 3.78 | K105: 99310 | L105: Nursing fac care subseq | M105: A | N105: 2.35 | O105: 1.31 | P105: 1.31 | Q105: 0.15 | R105: 3.81 | S105: 3.81 | T105: 0 | U105: 0.01 | V105: 0.01 | W105: 0.02 | X105: 0.03 | Y105: 0.03 | Z105: 1.074684 | AA105: 1.074684
A106: 99315 | C106: Nursing fac discharge day | D106: A | E106: 1.28 | F106: 0.69 | G106: 0.69 | H106: 0.08 | I106: 2.05 | J106: 2.05 | K106: 99315 | L106: Nursing fac discharge day | M106: A | N106: 1.28 | O106: 0.7 | P106: 0.7 | Q106: 0.07 | R106: 2.05 | S106: 2.05 | T106: 0 | U106: 0.01 | V106: 0.01 | W106: -0.01 | X106: 0 | Y106: 0 | Z106: 0 | AA106: 0
A107: 99316 | C107: Nursing fac discharge day | D107: A | E107: 1.9 | F107: 0.94 | G107: 0.94 | H107: 0.1 | I107: 2.94 | J107: 2.94 | K107: 99316 | L107: Nursing fac discharge day | M107: A | N107: 1.9 | O107: 0.95 | P107: 0.95 | Q107: 0.1 | R107: 2.95 | S107: 2.95 | T107: 0 | U107: 0.01 | V107: 0.01 | W107: 0 | X107: 0.01 | Y107: 0.01 | Z107: 0.358228 | AA107: 0.358228
A108: 99318 | C108: Annual nursing fac assessmnt | D108: A | E108: 1.71 | F108: 0.88 | G108: 0.88 | H108: 0.1 | I108: 2.69 | J108: 2.69 | K108: 99318 | L108: Annual nursing fac assessmnt | M108: A | N108: 1.71 | O108: 0.89 | P108: 0.89 | Q108: 0.09 | R108: 2.69 | S108: 2.69 | T108: 0 | U108: 0.01 | V108: 0.01 | W108: -0.01 | X108: 0 | Y108: 0 | Z108: 0 | AA108: 0
A109: 99324 | C109: Domicil/r-home visit new pat | D109: A | E109: 1.01 | F109: 0.48 | G109: 0.48 | H109: 0.07 | I109: 1.56 | J109: 1.56 | K109: 99324 | L109: Domicil/r-home visit new pat | M109: A | N109: 1.01 | O109: 0.48 | P109: 0.48 | Q109: 0.06 | R109: 1.55 | S109: 1.55 | T109: 0 | U109: 0 | V109: 0 | W109: -0.01 | X109: -0.01 | Y109: -0.01 | Z109: -0.358228 | AA109: -0.358228
A110: 99325 | C110: Domicil/r-home visit new pat | D110: A | E110: 1.52 | F110: 0.65 | G110: 0.65 | H110: 0.1 | I110: 2.27 | J110: 2.27 | K110: 99325 | L110: Domicil/r-home visit new pat | M110: A | N110: 1.52 | O110: 0.64 | P110: 0.64 | Q110: 0.09 | R110: 2.25 | S110: 2.25 | T110: 0 | U110: -0.01 | V110: -0.01 | W110: -0.01 | X110: -0.02 | Y110: -0.02 | Z110: -0.716456 | AA110: -0.716456
A111: 99326 | C111: Domicil/r-home visit new pat | D111: A | E111: 2.63 | F111: 1.13 | G111: 1.13 | H111: 0.15 | I111: 3.91 | J111: 3.91 | K111: 99326 | L111: Domicil/r-home visit new pat | M111: A | N111: 2.63 | O111: 1.12 | P111: 1.12 | Q111: 0.16 | R111: 3.91 | S111: 3.91 | T111: 0 | U111: -0.01 | V111: -0.01 | W111: 0.01 | X111: 0 | Y111: 0 | Z111: 0 | AA111: 0
A112: 99327 | C112: Domicil/r-home visit new pat | D112: A | E112: 3.46 | F112: 1.55 | G112: 1.55 | H112: 0.21 | I112: 5.22 | J112: 5.22 | K112: 99327 | L112: Domicil/r-home visit new pat | M112: A | N112: 3.46 | O112: 1.55 | P112: 1.55 | Q112: 0.2 | R112: 5.21 | S112: 5.21 | T112: 0 | U112: 0 | V112: 0 | W112: -0.01 | X112: -0.01 | Y112: -0.01 | Z112: -0.358228 | AA112: -0.358228
A113: 99328 | C113: Domicil/r-home visit new pat | D113: A | E113: 4.09 | F113: 1.73 | G113: 1.73 | H113: 0.23 | I113: 6.05 | J113: 6.05 | K113: 99328 | L113: Domicil/r-home visit new pat | M113: A | N113: 4.09 | O113: 1.76 | P113: 1.76 | Q113: 0.24 | R113: 6.09 | S113: 6.09 | T113: 0 | U113: 0.03 | V113: 0.03 | W113: 0.01 | X113: 0.04 | Y113: 0.04 | Z113: 1.432912 | AA113: 1.432912
A114: 99334 | C114: Domicil/r-home visit est pat | D114: A | E114: 1.07 | F114: 0.56 | G114: 0.56 | H114: 0.07 | I114: 1.7 | J114: 1.7 | K114: 99334 | L114: Domicil/r-home visit est pat | M114: A | N114: 1.07 | O114: 0.56 | P114: 0.56 | Q114: 0.06 | R114: 1.69 | S114: 1.69 | T114: 0 | U114: 0 | V114: 0 | W114: -0.01 | X114: -0.01 | Y114: -0.01 | Z114: -0.358228 | AA114: -0.358228
A115: 99335 | C115: Domicil/r-home visit est pat | D115: A | E115: 1.72 | F115: 0.84 | G115: 0.84 | H115: 0.1 | I115: 2.66 | J115: 2.66 | K115: 99335 | L115: Domicil/r-home visit est pat | M115: A | N115: 1.72 | O115: 0.85 | P115: 0.85 | Q115: 0.09 | R115: 2.66 | S115: 2.66 | T115: 0 | U115: 0.01 | V115: 0.01 | W115: -0.01 | X115: 0 | Y115: 0 | Z115: 0 | AA115: 0
A116: 99336 | C116: Domicil/r-home visit est pat | D116: A | E116: 2.46 | F116: 1.16 | G116: 1.16 | H116: 0.13 | I116: 3.75 | J116: 3.75 | K116: 99336 | L116: Domicil/r-home visit est pat | M116: A | N116: 2.46 | O116: 1.17 | P116: 1.17 | Q116: 0.15 | R116: 3.78 | S116: 3.78 | T116: 0 | U116: 0.01 | V116: 0.01 | W116: 0.02 | X116: 0.03 | Y116: 0.03 | Z116: 1.074684 | AA116: 1.074684
A117: 99337 | C117: Domicil/r-home visit est pat | D117: A | E117: 3.58 | F117: 1.61 | G117: 1.61 | H117: 0.22 | I117: 5.41 | J117: 5.41 | K117: 99337 | L117: Domicil/r-home visit est pat | M117: A | N117: 3.58 | O117: 1.62 | P117: 1.62 | Q117: 0.21 | R117: 5.41 | S117: 5.41 | T117: 0 | U117: 0.01 | V117: 0.01 | W117: -0.01 | X117: 0 | Y117: 0 | Z117: 0 | AA117: 0
A118: 99339 | C118: Domicil/r-home care supervis | D118: B | E118: 1.25 | F118: 0.86 | G118: 0.86 | H118: 0.08 | I118: 2.19 | J118: 2.19 | K118: 99339 | L118: Domicil/r-home care supervis | M118: B | N118: 1.25 | O118: 0.86 | P118: 0.86 | Q118: 0.08 | R118: 2.19 | S118: 2.19 | T118: 0 | U118: 0 | V118: 0 | W118: 0 | X118: 0 | Y118: 0 | Z118: 0 | AA118: 0
A119: 99340 | C119: Domicil/r-home care supervis | D119: B | E119: 1.8 | F119: 1.15 | G119: 1.15 | H119: 0.11 | I119: 3.06 | J119: 3.06 | K119: 99340 | L119: Domicil/r-home care supervis | M119: B | N119: 1.8 | O119: 1.15 | P119: 1.15 | Q119: 0.11 | R119: 3.06 | S119: 3.06 | T119: 0 | U119: 0 | V119: 0 | W119: 0 | X119: 0 | Y119: 0 | Z119: 0 | AA119: 0
A120: 99341 | C120: Home visit new patient | D120: A | E120: 1.01 | F120: 0.47 | G120: 0.47 | H120: 0.07 | I120: 1.55 | J120: 1.55 | K120: 99341 | L120: Home visit new patient | M120: A | N120: 1.01 | O120: 0.47 | P120: 0.47 | Q120: 0.07 | R120: 1.55 | S120: 1.55 | T120: 0 | U120: 0 | V120: 0 | W120: 0 | X120: 0 | Y120: 0 | Z120: 0 | AA120: 0
A121: 99342 | C121: Home visit new patient | D121: A | E121: 1.52 | F121: 0.61 | G121: 0.61 | H121: 0.11 | I121: 2.24 | J121: 2.24 | K121: 99342 | L121: Home visit new patient | M121: A | N121: 1.52 | O121: 0.61 | P121: 0.61 | Q121: 0.1 | R121: 2.23 | S121: 2.23 | T121: 0 | U121: 0 | V121: 0 | W121: -0.01 | X121: -0.01 | Y121: -0.01 | Z121: -0.358228 | AA121: -0.358228
A122: 99343 | C122: Home visit new patient | D122: A | E122: 2.53 | F122: 0.96 | G122: 0.96 | H122: 0.17 | I122: 3.66 | J122: 3.66 | K122: 99343 | L122: Home visit new patient | M122: A | N122: 2.53 | O122: 0.95 | P122: 0.95 | Q122: 0.17 | R122: 3.65 | S122: 3.65 | T122: 0 | U122: -0.01 | V122: -0.01 | W122: 0 | X122: -0.01 | Y122: -0.01 | Z122: -0.358228 | AA122: -0.358228
A123: 99344 | C123: Home visit new patient | D123: A | E123: 3.38 | F123: 1.52 | G123: 1.52 | H123: 0.21 | I123: 5.11 | J123: 5.11 | K123: 99344 | L123: Home visit new patient | M123: A | N123: 3.38 | O123: 1.52 | P123: 1.52 | Q123: 0.21 | R123: 5.11 | S123: 5.11 | T123: 0 | U123: 0 | V123: 0 | W123: 0 | X123: 0 | Y123: 0 | Z123: 0 | AA123: 0
A124: 99345 | C124: Home visit new patient | D124: A | E124: 4.09 | F124: 1.82 | G124: 1.82 | H124: 0.25 | I124: 6.16 | J124: 6.16 | K124: 99345 | L124: Home visit new patient | M124: A | N124: 4.09 | O124: 1.84 | P124: 1.84 | Q124: 0.25 | R124: 6.18 | S124: 6.18 | T124: 0 | U124: 0.02 | V124: 0.02 | W124: 0 | X124: 0.02 | Y124: 0.02 | Z124: 0.716456 | AA124: 0.716456
A125: 99347 | C125: Home visit est patient | D125: A | E125: 1 | F125: 0.49 | G125: 0.49 | H125: 0.07 | I125: 1.56 | J125: 1.56 | K125: 99347 | L125: Home visit est patient | M125: A | N125: 1 | O125: 0.49 | P125: 0.49 | Q125: 0.06 | R125: 1.55 | S125: 1.55 | T125: 0 | U125: 0 | V125: 0 | W125: -0.01 | X125: -0.01 | Y125: -0.01 | Z125: -0.358228 | AA125: -0.358228
A126: 99348 | C126: Home visit est patient | D126: A | E126: 1.56 | F126: 0.7 | G126: 0.7 | H126: 0.1 | I126: 2.36 | J126: 2.36 | K126: 99348 | L126: Home visit est patient | M126: A | N126: 1.56 | O126: 0.7 | P126: 0.7 | Q126: 0.09 | R126: 2.35 | S126: 2.35 | T126: 0 | U126: 0 | V126: 0 | W126: -0.01 | X126: -0.01 | Y126: -0.01 | Z126: -0.358228 | AA126: -0.358228
A127: 99349 | C127: Home visit est patient | D127: A | E127: 2.33 | F127: 1.11 | G127: 1.11 | H127: 0.13 | I127: 3.57 | J127: 3.57 | K127: 99349 | L127: Home visit est patient | M127: A | N127: 2.33 | O127: 1.12 | P127: 1.12 | Q127: 0.15 | R127: 3.6 | S127: 3.6 | T127: 0 | U127: 0.01 | V127: 0.01 | W127: 0.02 | X127: 0.03 | Y127: 0.03 | Z127: 1.074684 | AA127: 1.074684
A128: 99350 | C128: Home visit est patient | D128: A | E128: 3.28 | F128: 1.49 | G128: 1.49 | H128: 0.21 | I128: 4.98 | J128: 4.98 | K128: 99350 | L128: Home visit est patient | M128: A | N128: 3.28 | O128: 1.49 | P128: 1.49 | Q128: 0.2 | R128: 4.97 | S128: 4.97 | T128: 0 | U128: 0 | V128: 0 | W128: -0.01 | X128: -0.01 | Y128: -0.01 | Z128: -0.358228 | AA128: -0.358228
A129: 99354 | C129: Prolonged service office | D129: A | E129: 1.77 | F129: 0.92 | G129: 0.73 | H129: 0.11 | I129: 2.8 | J129: 2.61 | K129: 99354 | L129: Prolonged service office | M129: A | N129: 1.77 | O129: 0.92 | P129: 0.72 | Q129: 0.11 | R129: 2.8 | S129: 2.6 | T129: 0 | U129: 0 | V129: -0.01 | W129: 0 | X129: 0 | Y129: -0.01 | Z129: 0 | AA129: -0.358228
A130: 99355 | C130: Prolonged service office | D130: A | E130: 1.77 | F130: 0.86 | G130: 0.67 | H130: 0.11 | I130: 2.74 | J130: 2.55 | K130: 99355 | L130: Prolonged service office | M130: A | N130: 1.77 | O130: 0.83 | P130: 0.63 | Q130: 0.11 | R130: 2.71 | S130: 2.51 | T130: 0 | U130: -0.03 | V130: -0.04 | W130: 0 | X130: -0.03 | Y130: -0.04 | Z130: -1.074684 | AA130: -1.432912
A131: 99356 | C131: Prolonged service inpatient | D131: A | E131: 1.71 | F131: 0.76 | G131: 0.76 | H131: 0.11 | I131: 2.58 | J131: 2.58 | K131: 99356 | L131: Prolonged service inpatient | M131: A | N131: 1.71 | O131: 0.77 | P131: 0.77 | Q131: 0.1 | R131: 2.58 | S131: 2.58 | T131: 0 | U131: 0.01 | V131: 0.01 | W131: -0.01 | X131: 0 | Y131: 0 | Z131: 0 | AA131: 0
A132: 99357 | C132: Prolonged service inpatient | D132: A | E132: 1.71 | F132: 0.74 | G132: 0.74 | H132: 0.11 | I132: 2.56 | J132: 2.56 | K132: 99357 | L132: Prolonged service inpatient | M132: A | N132: 1.71 | O132: 0.75 | P132: 0.75 | Q132: 0.09 | R132: 2.55 | S132: 2.55 | T132: =N132-E132 -> 0 | U132: =O132-F132 -> 0.01 | V132: =P132-G132 -> 0.01 | W132: =Q132-H132 -> -0.02 | X132: =R132-I132 -> -0.01 | Y132: =S132-J132 -> -0.01 | Z132: -0.358228 | AA132: -0.358228
A133: 99358 | C133: Prolong service w/o contact | D133: B | E133: 2.1 | F133: 0.85 | G133: 0.85 | H133: 0.13 | I133: 3.08 | J133: 3.08 | K133: 99358 | L133: Prolong service w/o contact | M133: B | N133: 2.1 | O133: 0.84 | P133: 0.84 | Q133: 0.15 | R133: 3.09 | S133: 3.09 | T133: 0 | U133: -0.01 | V133: -0.01 | W133: 0.02 | X133: 0.01 | Y133: 0.01 | Z133: =X133*$Z$1 -> 0.358228 | AA133: =Y133*$Z$1 -> 0.358228
A134: 99359 | C134: Prolong serv w/o contact add | D134: B | E134: 1 | F134: 0.42 | G134: 0.42 | H134: 0.07 | I134: 1.49 | J134: 1.49 | K134: 99359 | L134: Prolong serv w/o contact add | M134: B | N134: 1 | O134: 0.42 | P134: 0.42 | Q134: 0.06 | R134: 1.48 | S134: 1.48 | T134: 0 | U134: 0 | V134: 0 | W134: -0.01 | X134: -0.01 | Y134: -0.01 | Z134: -0.358228 | AA134: -0.358228
A135: 99360 | C135: Physician standby services | D135: X | E135: 1.2 | F135: 0.46 | G135: 0.46 | H135: 0.08 | I135: 1.74 | J135: 1.74 | K135: 99360 | L135: Physician standby services | M135: X | N135: 1.2 | O135: 0.46 | P135: 0.46 | Q135: 0.07 | R135: 1.73 | S135: 1.73 | T135: 0 | U135: 0 | V135: 0 | W135: -0.01 | X135: -0.01 | Y135: -0.01 | Z135: -0.358228 | AA135: -0.358228
A136: 99363 | C136: Anticoagulant mgmt initial | D136: B | E136: 1.65 | F136: 1.81 | G136: 0.63 | H136: 0.11 | I136: 3.57 | J136: 2.39 | K136: 99363 | L136: Anticoagulant mgmt initial | M136: B | N136: 1.65 | O136: 1.83 | P136: 0.63 | Q136: 0.1 | R136: 3.58 | S136: 2.38 | T136: 0 | U136: 0.02 | V136: 0 | W136: -0.01 | X136: 0.01 | Y136: -0.01 | Z136: 0.358228 | AA136: -0.358228
A137: 99364 | C137: Anticoagulant mgmt subseq | D137: B | E137: 0.63 | F137: 0.54 | G137: 0.24 | H137: 0.04 | I137: 1.21 | J137: 0.91 | K137: 99364 | L137: Anticoagulant mgmt subseq | M137: B | N137: 0.63 | O137: 0.55 | P137: 0.24 | Q137: 0.04 | R137: 1.22 | S137: 0.91 | T137: 0 | U137: 0.01 | V137: 0 | W137: 0 | X137: 0.01 | Y137: 0 | Z137: 0.358228 | AA137: 0
A138: 99366 | C138: Team conf w/pat by hc prof | D138: B | E138: 0.82 | F138: 0.34 | G138: 0.32 | H138: 0.05 | I138: 1.21 | J138: 1.19 | K138: 99366 | L138: Team conf w/pat by hc prof | M138: B | N138: 0.82 | O138: 0.34 | P138: 0.31 | Q138: 0.05 | R138: 1.21 | S138: 1.18 | T138: 0 | U138: 0 | V138: -0.01 | W138: 0 | X138: 0 | Y138: -0.01 | Z138: 0 | AA138: -0.358228
A139: 99367 | C139: Team conf w/o pat by phys | D139: B | E139: 1.1 | F139: 0.42 | G139: 0.42 | H139: 0.07 | I139: 1.59 | J139: 1.59 | K139: 99367 | L139: Team conf w/o pat by phys | M139: B | N139: 1.1 | O139: 0.42 | P139: 0.42 | Q139: 0.07 | R139: 1.59 | S139: 1.59 | T139: 0 | U139: 0 | V139: 0 | W139: 0 | X139: 0 | Y139: 0 | Z139: 0 | AA139: 0
A140: 99368 | C140: Team conf w/o pat by hc pro | D140: B | E140: 0.72 | F140: 0.28 | G140: 0.28 | H140: 0.04 | I140: 1.04 | J140: 1.04 | K140: 99368 | L140: Team conf w/o pat by hc pro | M140: B | N140: 0.72 | O140: 0.28 | P140: 0.28 | Q140: 0.04 | R140: 1.04 | S140: 1.04 | T140: 0 | U140: 0 | V140: 0 | W140: 0 | X140: 0 | Y140: 0 | Z140: 0 | AA140: 0
A141: 99374 | C141: Home health care supervision | D141: B | E141: 1.1 | F141: 0.8 | G141: 0.42 | H141: 0.07 | I141: 1.97 | J141: 1.59 | K141: 99374 | L141: Home health care supervision | M141: B | N141: 1.1 | O141: 0.8 | P141: 0.42 | Q141: 0.07 | R141: 1.97 | S141: 1.59 | T141: 0 | U141: 0 | V141: 0 | W141: 0 | X141: 0 | Y141: 0 | Z141: 0 | AA141: 0
A142: 99375 | C142: Home health care supervision | D142: I | E142: 1.73 | F142: 1.12 | G142: 0.67 | H142: 0.11 | I142: 2.96 | J142: 2.51 | K142: 99375 | L142: Home health care supervision | M142: I | N142: 1.73 | O142: 1.12 | P142: 0.66 | Q142: 0.11 | R142: 2.96 | S142: 2.5 | T142: 0 | U142: 0 | V142: -0.01 | W142: 0 | X142: 0 | Y142: -0.01 | Z142: 0 | AA142: -0.358228
A143: 99377 | C143: Hospice care supervision | D143: B | E143: 1.1 | F143: 0.8 | G143: 0.42 | H143: 0.07 | I143: 1.97 | J143: 1.59 | K143: 99377 | L143: Hospice care supervision | M143: B | N143: 1.1 | O143: 0.8 | P143: 0.42 | Q143: 0.07 | R143: 1.97 | S143: 1.59 | T143: 0 | U143: 0 | V143: 0 | W143: 0 | X143: 0 | Y143: 0 | Z143: 0 | AA143: 0
A144: 99378 | C144: Hospice care supervision | D144: I | E144: 1.73 | F144: 1.12 | G144: 0.67 | H144: 0.11 | I144: 2.96 | J144: 2.51 | K144: 99378 | L144: Hospice care supervision | M144: I | N144: 1.73 | O144: 1.12 | P144: 0.66 | Q144: 0.11 | R144: 2.96 | S144: 2.5 | T144: 0 | U144: 0 | V144: -0.01 | W144: 0 | X144: 0 | Y144: -0.01 | Z144: 0 | AA144: -0.358228
A145: 99379 | C145: Nursing fac care supervision | D145: B | E145: 1.1 | F145: 0.8 | G145: 0.42 | H145: 0.07 | I145: 1.97 | J145: 1.59 | K145: 99379 | L145: Nursing fac care supervision | M145: B | N145: 1.1 | O145: 0.8 | P145: 0.42 | Q145: 0.07 | R145: 1.97 | S145: 1.59 | T145: 0 | U145: 0 | V145: 0 | W145: 0 | X145: 0 | Y145: 0 | Z145: 0 | AA145: 0
A146: 99380 | C146: Nursing fac care supervision | D146: B | E146: 1.73 | F146: 1.12 | G146: 0.67 | H146: 0.11 | I146: 2.96 | J146: 2.51 | K146: 99380 | L146: Nursing fac care supervision | M146: B | N146: 1.73 | O146: 1.12 | P146: 0.66 | Q146: 0.11 | R146: 2.96 | S146: 2.5 | T146: 0 | U146: 0 | V146: -0.01 | W146: 0 | X146: 0 | Y146: -0.01 | Z146: 0 | AA146: -0.358228
A147: 99381 | C147: Init pm e/m new pat infant | D147: N | E147: 1.5 | F147: 1.5 | G147: 0.58 | H147: 0.1 | I147: 3.1 | J147: 2.18 | K147: 99381 | L147: Init pm e/m new pat infant | M147: N | N147: 1.5 | O147: 1.51 | P147: 0.57 | Q147: 0.09 | R147: 3.1 | S147: 2.16 | T147: 0 | U147: 0.01 | V147: -0.01 | W147: -0.01 | X147: 0 | Y147: -0.02 | Z147: 0 | AA147: -0.716456
A148: 99382 | C148: Init pm e/m new pat 1-4 yrs | D148: N | E148: 1.6 | F148: 1.54 | G148: 0.62 | H148: 0.09 | I148: 3.23 | J148: 2.31 | K148: 99382 | L148: Init pm e/m new pat 1-4 yrs | M148: N | N148: 1.6 | O148: 1.55 | P148: 0.61 | Q148: 0.1 | R148: 3.25 | S148: 2.31 | T148: 0 | U148: 0.01 | V148: -0.01 | W148: 0.01 | X148: 0.02 | Y148: 0 | Z148: 0.716456 | AA148: 0
A149: 99383 | C149: Prev visit new age 5-11 | D149: N | E149: 1.7 | F149: 1.57 | G149: 0.65 | H149: 0.1 | I149: 3.37 | J149: 2.45 | K149: 99383 | L149: Prev visit new age 5-11 | M149: N | N149: 1.7 | O149: 1.58 | P149: 0.65 | Q149: 0.11 | R149: 3.39 | S149: 2.46 | T149: 0 | U149: 0.01 | V149: 0 | W149: 0.01 | X149: 0.02 | Y149: 0.01 | Z149: 0.716456 | AA149: 0.358228
A150: 99384 | C150: Prev visit new age 12-17 | D150: N | E150: 2 | F150: 1.69 | G150: 0.77 | H150: 0.12 | I150: 3.81 | J150: 2.89 | K150: 99384 | L150: Prev visit new age 12-17 | M150: N | N150: 2 | O150: 1.7 | P150: 0.76 | Q150: 0.12 | R150: 3.82 | S150: 2.88 | T150: 0 | U150: 0.01 | V150: -0.01 | W150: 0 | X150: 0.01 | Y150: -0.01 | Z150: 0.358228 | AA150: -0.358228
A151: 99385 | C151: Prev visit new age 18-39 | D151: N | E151: 1.92 | F151: 1.66 | G151: 0.74 | H151: 0.12 | I151: 3.7 | J151: 2.78 | K151: 99385 | L151: Prev visit new age 18-39 | M151: N | N151: 1.92 | O151: 1.66 | P151: 0.73 | Q151: 0.12 | R151: 3.7 | S151: 2.77 | T151: 0 | U151: 0 | V151: -0.01 | W151: 0 | X151: 0 | Y151: -0.01 | Z151: 0 | AA151: -0.358228
A152: 99386 | C152: Prev visit new age 40-64 | D152: N | E152: 2.33 | F152: 1.8 | G152: 0.9 | H152: 0.14 | I152: 4.27 | J152: 3.37 | K152: 99386 | L152: Prev visit new age 40-64 | M152: N | N152: 2.33 | O152: 1.82 | P152: 0.89 | Q152: 0.16 | R152: 4.31 | S152: 3.38 | T152: 0 | U152: 0.02 | V152: -0.01 | W152: 0.02 | X152: 0.04 | Y152: 0.01 | Z152: 1.432912 | AA152: 0.358228
A153: 99387 | C153: Init pm e/m new pat 65+ yrs | D153: N | E153: 2.5 | F153: 1.98 | G153: 0.96 | H153: 0.16 | I153: 4.64 | J153: 3.62 | K153: 99387 | L153: Init pm e/m new pat 65+ yrs | M153: N | N153: 2.5 | O153: 2 | P153: 0.96 | Q153: 0.17 | R153: 4.67 | S153: 3.63 | T153: 0 | U153: 0.02 | V153: 0 | W153: 0.01 | X153: 0.03 | Y153: 0.01 | Z153: 1.074684 | AA153: 0.358228
A154: 99391 | C154: Per pm reeval est pat infant | D154: N | E154: 1.37 | F154: 1.33 | G154: 0.53 | H154: 0.09 | I154: 2.79 | J154: 1.99 | K154: 99391 | L154: Per pm reeval est pat infant | M154: N | N154: 1.37 | O154: 1.34 | P154: 0.52 | Q154: 0.08 | R154: 2.79 | S154: 1.97 | T154: 0 | U154: 0.01 | V154: -0.01 | W154: -0.01 | X154: 0 | Y154: -0.02 | Z154: 0 | AA154: -0.716456
A155: 99392 | C155: Prev visit est age 1-4 | D155: N | E155: 1.5 | F155: 1.38 | G155: 0.58 | H155: 0.1 | I155: 2.98 | J155: 2.18 | K155: 99392 | L155: Prev visit est age 1-4 | M155: N | N155: 1.5 | O155: 1.39 | P155: 0.57 | Q155: 0.09 | R155: 2.98 | S155: 2.16 | T155: 0 | U155: 0.01 | V155: -0.01 | W155: -0.01 | X155: 0 | Y155: -0.02 | Z155: 0 | AA155: -0.716456
A156: 99393 | C156: Prev visit est age 5-11 | D156: N | E156: 1.5 | F156: 1.37 | G156: 0.58 | H156: 0.1 | I156: 2.97 | J156: 2.18 | K156: 99393 | L156: Prev visit est age 5-11 | M156: N | N156: 1.5 | O156: 1.38 | P156: 0.57 | Q156: 0.09 | R156: 2.97 | S156: 2.16 | T156: 0 | U156: 0.01 | V156: -0.01 | W156: -0.01 | X156: 0 | Y156: -0.02 | Z156: 0 | AA156: -0.716456
A157: 99394 | C157: Prev visit est age 12-17 | D157: N | E157: 1.7 | F157: 1.45 | G157: 0.65 | H157: 0.1 | I157: 3.25 | J157: 2.45 | K157: 99394 | L157: Prev visit est age 12-17 | M157: N | N157: 1.7 | O157: 1.46 | P157: 0.65 | Q157: 0.11 | R157: 3.27 | S157: 2.46 | T157: 0 | U157: 0.01 | V157: 0 | W157: 0.01 | X157: 0.02 | Y157: 0.01 | Z157: 0.716456 | AA157: 0.358228
A158: 99395 | C158: Prev visit est age 18-39 | D158: N | E158: 1.75 | F158: 1.47 | G158: 0.67 | H158: 0.1 | I158: 3.32 | J158: 2.52 | K158: 99395 | L158: Prev visit est age 18-39 | M158: N | N158: 1.75 | O158: 1.48 | P158: 0.67 | Q158: 0.11 | R158: 3.34 | S158: 2.53 | T158: 0 | U158: 0.01 | V158: 0 | W158: 0.01 | X158: 0.02 | Y158: 0.01 | Z158: 0.716456 | AA158: 0.358228
A159: 99396 | C159: Prev visit est age 40-64 | D159: N | E159: 1.9 | F159: 1.53 | G159: 0.73 | H159: 0.11 | I159: 3.54 | J159: 2.74 | K159: 99396 | L159: Prev visit est age 40-64 | M159: N | N159: 1.9 | O159: 1.54 | P159: 0.73 | Q159: 0.12 | R159: 3.56 | S159: 2.75 | T159: 0 | U159: 0.01 | V159: 0 | W159: 0.01 | X159: 0.02 | Y159: 0.01 | Z159: 0.716456 | AA159: 0.358228
A160: 99397 | C160: Per pm reeval est pat 65+ yr | D160: N | E160: 2 | F160: 1.69 | G160: 0.77 | H160: 0.12 | I160: 3.81 | J160: 2.89 | K160: 99397 | L160: Per pm reeval est pat 65+ yr | M160: N | N160: 2 | O160: 1.7 | P160: 0.76 | Q160: 0.12 | R160: 3.82 | S160: 2.88 | T160: 0 | U160: 0.01 | V160: -0.01 | W160: 0 | X160: 0.01 | Y160: -0.01 | Z160: 0.358228 | AA160: -0.358228
A161: 99401 | C161: Preventive counseling indiv | D161: N | E161: 0.48 | F161: 0.51 | G161: 0.18 | H161: 0.03 | I161: 1.02 | J161: 0.69 | K161: 99401 | L161: Preventive counseling indiv | M161: N | N161: 0.48 | O161: 0.51 | P161: 0.18 | Q161: 0.03 | R161: 1.02 | S161: 0.69 | T161: 0 | U161: 0 | V161: 0 | W161: 0 | X161: 0 | Y161: 0 | Z161: 0 | AA161: 0
A162: 99402 | C162: Preventive counseling indiv | D162: N | E162: 0.98 | F162: 0.7 | G162: 0.38 | H162: 0.07 | I162: 1.75 | J162: 1.43 | K162: 99402 | L162: Preventive counseling indiv | M162: N | N162: 0.98 | O162: 0.7 | P162: 0.37 | Q162: 0.06 | R162: 1.74 | S162: 1.41 | T162: 0 | U162: 0 | V162: -0.01 | W162: -0.01 | X162: -0.01 | Y162: -0.02 | Z162: -0.358228 | AA162: -0.716456
A163: 99403 | C163: Preventive counseling indiv | D163: N | E163: 1.46 | F163: 0.88 | G163: 0.56 | H163: 0.1 | I163: 2.44 | J163: 2.12 | K163: 99403 | L163: Preventive counseling indiv | M163: N | N163: 1.46 | O163: 0.88 | P163: 0.56 | Q163: 0.09 | R163: 2.43 | S163: 2.11 | T163: 0 | U163: 0 | V163: 0 | W163: -0.01 | X163: -0.01 | Y163: -0.01 | Z163: -0.358228 | AA163: -0.358228
A164: 99404 | C164: Preventive counseling indiv | D164: N | E164: 1.95 | F164: 1.07 | G164: 0.75 | H164: 0.11 | I164: 3.13 | J164: 2.81 | K164: 99404 | L164: Preventive counseling indiv | M164: N | N164: 1.95 | O164: 1.07 | P164: 0.75 | Q164: 0.12 | R164: 3.14 | S164: 2.82 | T164: 0 | U164: 0 | V164: 0 | W164: 0.01 | X164: 0.01 | Y164: 0.01 | Z164: 0.358228 | AA164: 0.358228
A165: 99406 | C165: Behav chng smoking 3-10 min | D165: A | E165: 0.24 | F165: 0.14 | G165: 0.09 | H165: 0.01 | I165: 0.39 | J165: 0.34 | K165: 99406 | L165: Behav chng smoking 3-10 min | M165: A | N165: 0.24 | O165: 0.14 | P165: 0.09 | Q165: 0.02 | R165: 0.4 | S165: 0.35 | T165: 0 | U165: 0 | V165: 0 | W165: 0.01 | X165: 0.01 | Y165: 0.01 | Z165: 0.358228 | AA165: 0.358228
A166: 99407 | C166: Behav chng smoking > 10 min | D166: A | E166: 0.5 | F166: 0.24 | G166: 0.19 | H166: 0.03 | I166: 0.77 | J166: 0.72 | K166: 99407 | L166: Behav chng smoking > 10 min | M166: A | N166: 0.5 | O166: 0.24 | P166: 0.19 | Q166: 0.03 | R166: 0.77 | S166: 0.72 | T166: 0 | U166: 0 | V166: 0 | W166: 0 | X166: 0 | Y166: 0 | Z166: 0 | AA166: 0
A167: 99408 | C167: Audit/dast 15-30 min | D167: N | E167: 0.65 | F167: 0.3 | G167: 0.25 | H167: 0.04 | I167: 0.99 | J167: 0.94 | K167: 99408 | L167: Audit/dast 15-30 min | M167: N | N167: 0.65 | O167: 0.3 | P167: 0.25 | Q167: 0.04 | R167: 0.99 | S167: 0.94 | T167: 0 | U167: 0 | V167: 0 | W167: 0 | X167: 0 | Y167: 0 | Z167: 0 | AA167: 0
A168: 99409 | C168: Audit/dast over 30 min | D168: N | E168: 1.3 | F168: 0.55 | G168: 0.5 | H168: 0.08 | I168: 1.93 | J168: 1.88 | K168: 99409 | L168: Audit/dast over 30 min | M168: N | N168: 1.3 | O168: 0.55 | P168: 0.5 | Q168: 0.08 | R168: 1.93 | S168: 1.88 | T168: 0 | U168: 0 | V168: 0 | W168: 0 | X168: 0 | Y168: 0 | Z168: 0 | AA168: 0
A169: 99411 | C169: Preventive counseling group | D169: N | E169: 0.15 | F169: 0.3 | G169: 0.06 | H169: 0.01 | I169: 0.46 | J169: 0.22 | K169: 99411 | L169: Preventive counseling group | M169: N | N169: 0.15 | O169: 0.3 | P169: 0.06 | Q169: 0.01 | R169: 0.46 | S169: 0.22 | T169: 0 | U169: 0 | V169: 0 | W169: 0 | X169: 0 | Y169: 0 | Z169: 0 | AA169: 0
A170: 99412 | C170: Preventive counseling group | D170: N | E170: 0.25 | F170: 0.34 | G170: 0.1 | H170: 0.01 | I170: 0.6 | J170: 0.36 | K170: 99412 | L170: Preventive counseling group | M170: N | N170: 0.25 | O170: 0.34 | P170: 0.1 | Q170: 0.02 | R170: 0.61 | S170: 0.37 | T170: 0 | U170: 0 | V170: 0 | W170: 0.01 | X170: 0.01 | Y170: 0.01 | Z170: 0.358228 | AA170: 0.358228
A171: 99420 | C171: Health risk assessment test | D171: N | E171: 0 | F171: 0.29 | G171: 0.29 | H171: 0.01 | I171: 0.3 | J171: 0.3 | K171: 99420 | L171: Health risk assessment test | M171: N | N171: 0 | O171: 0.3 | P171: 0.3 | Q171: 0.01 | R171: 0.31 | S171: 0.31 | T171: 0 | U171: 0.01 | V171: 0.01 | W171: 0 | X171: 0.01 | Y171: 0.01 | Z171: 0.358228 | AA171: 0.358228
A172: 99429 | C172: Unlisted preventive service | D172: N | E172: 0 | F172: 0 | G172: 0 | H172: 0 | I172: 0 | J172: 0 | K172: 99429 | L172: Unlisted preventive service | M172: N | N172: 0 | O172: 0 | P172: 0 | Q172: 0 | R172: 0 | S172: 0 | T172: 0 | U172: 0 | V172: 0 | W172: 0 | X172: 0 | Y172: 0 | Z172: 0 | AA172: 0
A173: 99441 | C173: Phone e/m phys/qhp 5-10 min | D173: N | E173: 0.25 | F173: 0.13 | G173: 0.1 | H173: 0.01 | I173: 0.39 | J173: 0.36 | K173: 99441 | L173: Phone e/m phys/qhp 5-10 min | M173: N | N173: 0.25 | O173: 0.13 | P173: 0.1 | Q173: 0.02 | R173: 0.4 | S173: 0.37 | T173: 0 | U173: 0 | V173: 0 | W173: 0.01 | X173: 0.01 | Y173: 0.01 | Z173: 0.358228 | AA173: 0.358228
A174: 99442 | C174: Phone e/m phys/qhp 11-20 min | D174: N | E174: 0.5 | F174: 0.23 | G174: 0.19 | H174: 0.03 | I174: 0.76 | J174: 0.72 | K174: 99442 | L174: Phone e/m phys/qhp 11-20 min | M174: N | N174: 0.5 | O174: 0.23 | P174: 0.19 | Q174: 0.03 | R174: 0.76 | S174: 0.72 | T174: 0 | U174: 0 | V174: 0 | W174: 0 | X174: 0 | Y174: 0 | Z174: 0 | AA174: 0
A175: 99443 | C175: Phone e/m phys/qhp 21-30 min | D175: N | E175: 0.75 | F175: 0.33 | G175: 0.29 | H175: 0.05 | I175: 1.13 | J175: 1.09 | K175: 99443 | L175: Phone e/m phys/qhp 21-30 min | M175: N | N175: 0.75 | O175: 0.33 | P175: 0.29 | Q175: 0.05 | R175: 1.13 | S175: 1.09 | T175: 0 | U175: 0 | V175: 0 | W175: 0 | X175: 0 | Y175: 0 | Z175: 0 | AA175: 0
A176: 99444 | C176: Online e/m by phys/qhp | D176: N | E176: 0 | F176: 0 | G176: 0 | H176: 0 | I176: 0 | J176: 0 | K176: 99444 | L176: Online e/m by phys/qhp | M176: N | N176: 0 | O176: 0 | P176: 0 | Q176: 0 | R176: 0 | S176: 0 | T176: 0 | U176: 0 | V176: 0 | W176: 0 | X176: 0 | Y176: 0 | Z176: 0 | AA176: 0
A177: 99446 | C177: Interprof phone/online 5-10 | D177: B | E177: 0 | F177: 0 | G177: 0 | H177: 0 | I177: 0 | J177: 0 | K177: 99446 | L177: Interprof phone/online 5-10 | M177: B | N177: 0 | O177: 0 | P177: 0 | Q177: 0 | R177: 0 | S177: 0 | T177: 0 | U177: 0 | V177: 0 | W177: 0 | X177: 0 | Y177: 0 | Z177: 0 | AA177: 0
A178: 99447 | C178: Interprof phone/online 11-20 | D178: B | E178: 0 | F178: 0 | G178: 0 | H178: 0 | I178: 0 | J178: 0 | K178: 99447 | L178: Interprof phone/online 11-20 | M178: B | N178: 0 | O178: 0 | P178: 0 | Q178: 0 | R178: 0 | S178: 0 | T178: 0 | U178: 0 | V178: 0 | W178: 0 | X178: 0 | Y178: 0 | Z178: 0 | AA178: 0
A179: 99448 | C179: Interprof phone/online 21-30 | D179: B | E179: 0 | F179: 0 | G179: 0 | H179: 0 | I179: 0 | J179: 0 | K179: 99448 | L179: Interprof phone/online 21-30 | M179: B | N179: 0 | O179: 0 | P179: 0 | Q179: 0 | R179: 0 | S179: 0 | T179: 0 | U179: 0 | V179: 0 | W179: 0 | X179: 0 | Y179: 0 | Z179: 0 | AA179: 0
A180: 99449 | C180: Interprof phone/online 31/> | D180: B | E180: 0 | F180: 0 | G180: 0 | H180: 0 | I180: 0 | J180: 0 | K180: 99449 | L180: Interprof phone/online 31/> | M180: B | N180: 0 | O180: 0 | P180: 0 | Q180: 0 | R180: 0 | S180: 0 | T180: 0 | U180: 0 | V180: 0 | W180: 0 | X180: 0 | Y180: 0 | Z180: 0 | AA180: 0
A181: 99450 | C181: Basic life disability exam | D181: N | E181: 0 | F181: 0 | G181: 0 | H181: 0 | I181: 0 | J181: 0 | K181: 99450 | L181: Basic life disability exam | M181: N | N181: 0 | O181: 0 | P181: 0 | Q181: 0 | R181: 0 | S181: 0 | T181: 0 | U181: 0 | V181: 0 | W181: 0 | X181: 0 | Y181: 0 | Z181: 0 | AA181: 0
A182: 99455 | C182: Work related disability exam | D182: R | E182: 0 | F182: 0 | G182: 0 | H182: 0 | I182: 0 | J182: 0 | K182: 99455 | L182: Work related disability exam | M182: R | N182: 0 | O182: 0 | P182: 0 | Q182: 0 | R182: 0 | S182: 0 | T182: 0 | U182: 0 | V182: 0 | W182: 0 | X182: 0 | Y182: 0 | Z182: 0 | AA182: 0
A183: 99456 | C183: Disability examination | D183: R | E183: 0 | F183: 0 | G183: 0 | H183: 0 | I183: 0 | J183: 0 | K183: 99456 | L183: Disability examination | M183: R | N183: 0 | O183: 0 | P183: 0 | Q183: 0 | R183: 0 | S183: 0 | T183: 0 | U183: 0 | V183: 0 | W183: 0 | X183: 0 | Y183: 0 | Z183: 0 | AA183: 0
A184: 99460 | C184: Init nb em per day hosp | D184: A | E184: 1.92 | F184: 0.65 | G184: 0.65 | H184: 0.08 | I184: 2.65 | J184: 2.65 | K184: 99460 | L184: Init nb em per day hosp | M184: A | N184: 1.92 | O184: 0.77 | P184: 0.77 | Q184: 0.1 | R184: 2.79 | S184: 2.79 | T184: 0 | U184: 0.12 | V184: 0.12 | W184: 0.02 | X184: 0.14 | Y184: 0.14 | Z184: 5.015192 | AA184: 5.015192
A185: 99461 | C185: Init nb em per day non-fac | D185: A | E185: 1.26 | F185: 1.41 | G185: 0.48 | H185: 0.08 | I185: 2.75 | J185: 1.82 | K185: 99461 | L185: Init nb em per day non-fac | M185: A | N185: 1.26 | O185: 1.2 | P185: 0.44 | Q185: 0.08 | R185: 2.54 | S185: 1.78 | T185: 0 | U185: -0.21 | V185: -0.04 | W185: 0 | X185: -0.21 | Y185: -0.04 | Z185: -7.522788 | AA185: -1.432912
A186: 99462 | C186: Sbsq nb em per day hosp | D186: A | E186: 0.84 | F186: 0.29 | G186: 0.29 | H186: 0.05 | I186: 1.18 | J186: 1.18 | K186: 99462 | L186: Sbsq nb em per day hosp | M186: A | N186: 0.84 | O186: 0.29 | P186: 0.29 | Q186: 0.04 | R186: 1.17 | S186: 1.17 | T186: 0 | U186: 0 | V186: 0 | W186: -0.01 | X186: -0.01 | Y186: -0.01 | Z186: -0.358228 | AA186: -0.358228
A187: 99463 | C187: Same day nb discharge | D187: A | E187: 2.13 | F187: 0.97 | G187: 0.97 | H187: 0.11 | I187: 3.21 | J187: 3.21 | K187: 99463 | L187: Same day nb discharge | M187: A | N187: 2.13 | O187: 1.1 | P187: 1.1 | Q187: 0.15 | R187: 3.38 | S187: 3.38 | T187: 0 | U187: 0.13 | V187: 0.13 | W187: 0.04 | X187: 0.17 | Y187: 0.17 | Z187: 6.089876 | AA187: 6.089876
A188: 99464 | C188: Attendance at delivery | D188: A | E188: 1.5 | F188: 0.42 | G188: 0.42 | H188: 0.07 | I188: 1.99 | J188: 1.99 | K188: 99464 | L188: Attendance at delivery | M188: A | N188: 1.5 | O188: 0.51 | P188: 0.51 | Q188: 0.08 | R188: 2.09 | S188: 2.09 | T188: 0 | U188: 0.09 | V188: 0.09 | W188: 0.01 | X188: 0.1 | Y188: 0.1 | Z188: 3.58228 | AA188: 3.58228
A189: 99465 | C189: Nb resuscitation | D189: A | E189: 2.93 | F189: 1 | G189: 1 | H189: 0.21 | I189: 4.14 | J189: 4.14 | K189: 99465 | L189: Nb resuscitation | M189: A | N189: 2.93 | O189: 1.15 | P189: 1.15 | Q189: 0.17 | R189: 4.25 | S189: 4.25 | T189: 0 | U189: 0.15 | V189: 0.15 | W189: -0.04 | X189: 0.11 | Y189: 0.11 | Z189: 3.940508 | AA189: 3.940508
A190: 99466 | C190: Ped crit care transport | D190: A | E190: 4.79 | F190: 1.61 | G190: 1.61 | H190: 0.98 | I190: 7.38 | J190: 7.38 | K190: 99466 | L190: Ped crit care transport | M190: A | N190: 4.79 | O190: 1.83 | P190: 1.83 | Q190: 0.32 | R190: 6.94 | S190: 6.94 | T190: 0 | U190: 0.22 | V190: 0.22 | W190: -0.66 | X190: -0.44 | Y190: -0.44 | Z190: -15.762032 | AA190: -15.762032
A191: 99467 | C191: Ped crit care transport addl | D191: A | E191: 2.4 | F191: 0.92 | G191: 0.92 | H191: 0.13 | I191: 3.45 | J191: 3.45 | K191: 99467 | L191: Ped crit care transport addl | M191: A | N191: 2.4 | O191: 0.92 | P191: 0.92 | Q191: 0.17 | R191: 3.49 | S191: 3.49 | T191: 0 | U191: 0 | V191: 0 | W191: 0.04 | X191: 0.04 | Y191: 0.04 | Z191: 1.432912 | AA191: 1.432912
A192: 99468 | C192: Neonate crit care initial | D192: A | E192: 18.46 | F192: 6.25 | G192: 6.25 | H192: 1.45 | I192: 26.16 | J192: 26.16 | K192: 99468 | L192: Neonate crit care initial | M192: A | N192: 18.46 | O192: 6.32 | P192: 6.32 | Q192: 1.07 | R192: 25.85 | S192: 25.85 | T192: 0 | U192: 0.07 | V192: 0.07 | W192: -0.38 | X192: -0.31 | Y192: -0.31 | Z192: -11.105068 | AA192: -11.105068
A193: 99469 | C193: Neonate crit care subsq | D193: A | E193: 7.99 | F193: 2.7 | G193: 2.7 | H193: 0.4 | I193: 11.09 | J193: 11.09 | K193: 99469 | L193: Neonate crit care subsq | M193: A | N193: 7.99 | O193: 2.74 | P193: 2.74 | Q193: 0.47 | R193: 11.2 | S193: 11.2 | T193: 0 | U193: 0.04 | V193: 0.04 | W193: 0.07 | X193: 0.11 | Y193: 0.11 | Z193: 3.940508 | AA193: 3.940508
A194: 99471 | C194: Ped critical care initial | D194: A | E194: 15.98 | F194: 7.13 | G194: 7.13 | H194: 0.83 | I194: 23.94 | J194: 23.94 | K194: 99471 | L194: Ped critical care initial | M194: A | N194: 15.98 | O194: 7.16 | P194: 7.16 | Q194: 1.42 | R194: 24.56 | S194: 24.56 | T194: 0 | U194: 0.03 | V194: 0.03 | W194: 0.59 | X194: 0.62 | Y194: 0.62 | Z194: 22.210136 | AA194: 22.210136
A195: 99472 | C195: Ped critical care subsq | D195: A | E195: 7.99 | F195: 2.82 | G195: 2.82 | H195: 0.46 | I195: 11.27 | J195: 11.27 | K195: 99472 | L195: Ped critical care subsq | M195: A | N195: 7.99 | O195: 2.94 | P195: 2.94 | Q195: 0.56 | R195: 11.49 | S195: 11.49 | T195: 0 | U195: 0.12 | V195: 0.12 | W195: 0.1 | X195: 0.22 | Y195: 0.22 | Z195: 7.881016 | AA195: 7.881016
A196: 99475 | C196: Ped crit care age 2-5 init | D196: A | E196: 11.25 | F196: 4.09 | G196: 4.09 | H196: 0.82 | I196: 16.16 | J196: 16.16 | K196: 99475 | L196: Ped crit care age 2-5 init | M196: A | N196: 11.25 | O196: 4.21 | P196: 4.21 | Q196: 0.79 | R196: 16.25 | S196: 16.25 | T196: =N196-E196 -> 0 | U196: =O196-F196 -> 0.12 | V196: =P196-G196 -> 0.12 | W196: =Q196-H196 -> -0.03 | X196: =R196-I196 -> 0.09 | Y196: =S196-J196 -> 0.09 | Z196: 3.224052 | AA196: 3.224052
A197: 99476 | C197: Ped crit care age 2-5 subsq | D197: A | E197: 6.75 | F197: 2.52 | G197: 2.52 | H197: 0.5 | I197: 9.77 | J197: 9.77 | K197: 99476 | L197: Ped crit care age 2-5 subsq | M197: A | N197: 6.75 | O197: 2.55 | P197: 2.55 | Q197: 0.48 | R197: 9.78 | S197: 9.78 | T197: 0 | U197: 0.03 | V197: 0.03 | W197: -0.02 | X197: 0.01 | Y197: 0.01 | Z197: =X197*$Z$1 -> 0.358228 | AA197: =Y197*$Z$1 -> 0.358228
A198: 99477 | C198: Init day hosp neonate care | D198: A | E198: 7 | F198: 2.37 | G198: 2.37 | H198: 0.36 | I198: 9.73 | J198: 9.73 | K198: 99477 | L198: Init day hosp neonate care | M198: A | N198: 7 | O198: 2.68 | P198: 2.68 | Q198: 0.47 | R198: 10.15 | S198: 10.15 | T198: 0 | U198: 0.31 | V198: 0.31 | W198: 0.11 | X198: 0.42 | Y198: 0.42 | Z198: 15.045576 | AA198: 15.045576
A199: 99478 | C199: Ic lbw inf < 1500 gm subsq | D199: A | E199: 2.75 | F199: 0.94 | G199: 0.94 | H199: 0.17 | I199: 3.86 | J199: 3.86 | K199: 99478 | L199: Ic lbw inf < 1500 gm subsq | M199: A | N199: 2.75 | O199: 1.05 | P199: 1.05 | Q199: 0.19 | R199: 3.99 | S199: 3.99 | T199: 0 | U199: 0.11 | V199: 0.11 | W199: 0.02 | X199: 0.13 | Y199: 0.13 | Z199: 4.656964 | AA199: 4.656964
A200: 99479 | C200: Ic lbw inf 1500-2500 g subsq | D200: A | E200: 2.5 | F200: 0.85 | G200: 0.85 | H200: 0.15 | I200: 3.5 | J200: 3.5 | K200: 99479 | L200: Ic lbw inf 1500-2500 g subsq | M200: A | N200: 2.5 | O200: 0.86 | P200: 0.86 | Q200: 0.15 | R200: 3.51 | S200: 3.51 | T200: 0 | U200: 0.01 | V200: 0.01 | W200: 0 | X200: 0.01 | Y200: 0.01 | Z200: 0.358228 | AA200: 0.358228
... 15 more rows
